Portfolio,Expense Area,Cost Centre,Expense Type,Account Code,Amount,Supplier Name,SupplierId,Pay Date,Transaction No.,,VAT No.,Co. Reg. No.,VAT No.,Voucher Type,�,Trans Date
Environment and Public Realm,WSU Depot,WDP00,Materials,303,282.08,Arco Limited,100015,10/05/2018,10258740,TC,166911546,,166911546,PN,1975.78,12/04/2018
Environment and Public Realm,Garage,WVR00,Personal Protective Equipment,306,165.6,Arco Limited,100015,10/05/2018,10258740,TC,166911546,,166911546,PN,1975.78,12/04/2018
Environment and Public Realm,Domestic Waste Collection/Recycling,REF00,Personal Protective Clothing,340,671.33,Arco Limited,100015,10/05/2018,10258740,TC,166911546,,166911546,PN,1975.78,12/04/2018
Environment and Public Realm,Street Cleansing General,STC00,Personal Protective Clothing,340,371.63,Arco Limited,100015,10/05/2018,10258740,TC,166911546,,166911546,PN,1975.78,12/04/2018
Environment and Public Realm,Garage,WVR00,Personal Protective Clothing,340,71.92,Arco Limited,100015,10/05/2018,10258740,TC,166911546,,166911546,PN,1975.78,12/04/2018
Environment and Public Realm,Trade Waste Collection,WWC01,Personal Protective Clothing,340,83.92,Arco Limited,100015,10/05/2018,10258740,TC,166911546,,166911546,PN,1975.78,12/04/2018
Environment and Public Realm,WSU Depot,WDP00,Materials,303,571.99,Arco Limited,100015,10/05/2018,10258833,TC,166911546,,166911546,PN,908.12,16/04/2018
Environment and Public Realm,Garage,WVR00,Materials,303,184.78,Arco Limited,100015,10/05/2018,10258833,TC,166911546,,166911546,PN,908.12,16/04/2018
Housing Revenue Account,Unplanned Maintenance and Repair,UMR00,Materials,303,368.6,Arco Limited,100015,03/05/2018,10259238,TC,166911546,,166911546,PN,679.62,27/04/2018
Housing Revenue Account,Unplanned Maintenance and Repair,UMR00,Personal Protective Clothing,340,197.75,Arco Limited,100015,03/05/2018,10259238,TC,166911546,,166911546,PN,679.62,27/04/2018
Housing Revenue Account,Unplanned Maintenance and Repair,UMR00,Personal Protective Clothing,340,474.5,Arco Limited,100015,24/05/2018,10259835,TC,166911546,,166911546,PN,569.4,16/05/2018
Environment and Public Realm,Parks,PKS00,Materials,303,64.75,Arco Limited,100015,31/05/2018,10259969,TC,166911546,,166911546,PN,523.07,18/05/2018
Environment and Public Realm,WSU Depot,WDP00,Materials,303,109.14,Arco Limited,100015,31/05/2018,10259969,TC,166911546,,166911546,PN,523.07,18/05/2018
Environment and Public Realm,WSU Depot,WDP00,Personal Protective Clothing,340,262,Arco Limited,100015,31/05/2018,10259969,TC,166911546,,166911546,PN,523.07,18/05/2018
Housing Revenue Account,Unplanned Maintenance and Repair,UMR00,Personal Protective Clothing,340,721.45,Arco Limited,100015,24/05/2018,10260042,TC,166911546,,166911546,PN,865.74,22/05/2018
Housing Revenue Account,Unplanned Maintenance and Repair,UMR00,Personal Protective Clothing,340,690.75,Arco Limited,100015,31/05/2018,10260136,TC,166911546,,166911546,PN,828.9,24/05/2018
Environment and Public Realm,Parks,PKS00,Maintenance of Equipment,301,796.95,Autopa Ltd,100046,03/05/2018,10258386,CS,GB196655022,,GB196655022,PI,956.34,03/04/2018
Housing Revenue Account,Repairs and Maintenance - Void works,UMR09,R&M External Contractors,100,655.02,AWM Electrical Contractors Ltd,100051,03/05/2018,10259269,CS,661675907,7430696,661675907,PN,786.02,30/04/2018
Housing Revenue Account,Repairs and Maintenance - Void works,UMR09,R&M External Contractors,100,3301.85,AWM Electrical Contractors Ltd,100051,03/05/2018,10259271,CS,661675907,7430696,661675907,PN,3962.22,30/04/2018
Housing Revenue Account,Repairs and Maintenance - Void works,UMR09,R&M External Contractors,100,391.37,AWM Electrical Contractors Ltd,100051,10/05/2018,10259429,CS,661675907,7430696,661675907,PN,608.86,03/05/2018
Housing Revenue Account,CAST - HRA Property Rental,CAS02,R&M External Contractors,100,39.98,AWM Electrical Contractors Ltd,100051,10/05/2018,10259431,CS,661675907,7430696,661675907,PN,8361.4,03/05/2018
Housing Revenue Account,Electrical maintenance,UMR10,R&M External Contractors,100,4899.72,AWM Electrical Contractors Ltd,100051,10/05/2018,10259431,CS,661675907,7430696,661675907,PN,8361.4,03/05/2018
Housing Revenue Account,Miscellaneous Unplanned Maintenance and Repair,UMR17,R&M External Contractors,100,412.24,AWM Electrical Contractors Ltd,100051,10/05/2018,10259431,CS,661675907,7430696,661675907,PN,8361.4,03/05/2018
Housing Revenue Account,Repairs and Maintenance - rechargeable works,UMR20,R&M External Contractors,100,27.21,AWM Electrical Contractors Ltd,100051,10/05/2018,10259431,CS,661675907,7430696,661675907,PN,8361.4,03/05/2018
Housing Revenue Account,Sheltered Housing Team,MAN21,Other Miscellaneous Expenses,444,1459.68,AWM Electrical Contractors Ltd,100051,10/05/2018,10259431,CS,661675907,7430696,661675907,PN,8361.4,03/05/2018
Housing Revenue Account,Multi-Storey Flats,MSF00,Other Miscellaneous Expenses,444,129,AWM Electrical Contractors Ltd,100051,10/05/2018,10259431,CS,661675907,7430696,661675907,PN,8361.4,03/05/2018
Housing Revenue Account,Gas Heating Systems,UMR01,R&M External Contractors,100,21.5,AWM Electrical Contractors Ltd,100051,10/05/2018,10259432,CS,661675907,7430696,661675907,PN,941.69,03/05/2018
Housing Revenue Account,Electrical maintenance,UMR10,R&M External Contractors,100,763.24,AWM Electrical Contractors Ltd,100051,10/05/2018,10259432,CS,661675907,7430696,661675907,PN,941.69,03/05/2018
Housing Revenue Account,Repairs and Maintenance - Void works,UMR09,R&M External Contractors,100,1015.7,AWM Electrical Contractors Ltd,100051,17/05/2018,10259643,CS,661675907,7430696,661675907,PN,1218.84,11/05/2018
Housing Revenue Account,Electrical maintenance,UMR10,R&M External Contractors,100,700.9,AWM Electrical Contractors Ltd,100051,24/05/2018,10259644,CS,661675907,7430696,661675907,PN,892.68,11/05/2018
Housing Revenue Account,Multi-Storey Flats,MSF00,Other Miscellaneous Expenses,444,43,AWM Electrical Contractors Ltd,100051,24/05/2018,10259644,CS,661675907,7430696,661675907,PN,892.68,11/05/2018
Housing Revenue Account,Electrical maintenance,UMR10,R&M External Contractors,100,4010.56,AWM Electrical Contractors Ltd,100051,24/05/2018,10259645,CS,661675907,7430696,661675907,PN,5435.21,11/05/2018
Housing Revenue Account,Miscellaneous Unplanned Maintenance and Repair,UMR17,R&M External Contractors,100,518.78,AWM Electrical Contractors Ltd,100051,24/05/2018,10259645,CS,661675907,7430696,661675907,PN,5435.21,11/05/2018
Housing Revenue Account,Electrical maintenance,UMR10,R&M External Contractors,100,1605.17,AWM Electrical Contractors Ltd,100051,24/05/2018,10259655,CS,661675907,7430696,661675907,PN,1926.2,11/05/2018
Housing Revenue Account,Electrical maintenance,UMR10,R&M External Contractors,100,2965.52,AWM Electrical Contractors Ltd,100051,24/05/2018,10259656,CS,661675907,7430696,661675907,PN,3664.38,11/05/2018
Housing Revenue Account,Miscellaneous Unplanned Maintenance and Repair,UMR17,R&M External Contractors,100,88.13,AWM Electrical Contractors Ltd,100051,24/05/2018,10259656,CS,661675907,7430696,661675907,PN,3664.38,11/05/2018
Housing Revenue Account,Repairs and Maintenance - Void works,UMR09,R&M External Contractors,100,897.37,AWM Electrical Contractors Ltd,100051,17/05/2018,10259657,CS,661675907,7430696,661675907,PN,1076.84,11/05/2018
Housing Revenue Account,Electrical maintenance,UMR10,R&M External Contractors,100,569.19,AWM Electrical Contractors Ltd,100051,24/05/2018,10259658,CS,661675907,7430696,661675907,PN,683.03,11/05/2018
Housing Revenue Account,Electrical Inspections,UMR04,R&M External Contractors,100,644,AWM Electrical Contractors Ltd,100051,24/05/2018,10259797,CS,661675907,7430696,661675907,PN,2979.2,15/05/2018
Housing Revenue Account,Electrical maintenance,UMR10,R&M External Contractors,100,796.09,AWM Electrical Contractors Ltd,100051,24/05/2018,10259797,CS,661675907,7430696,661675907,PN,2979.2,15/05/2018
Housing Revenue Account,Sheltered Housing,AGP00,New Equipment,300,1042.58,AWM Electrical Contractors Ltd,100051,24/05/2018,10259797,CS,661675907,7430696,661675907,PN,2979.2,15/05/2018
Corporate Resources,Corporate Property R&M,CPA01,R&M External Contractors,100,792.52,AWM Electrical Contractors Ltd,100051,17/05/2018,10259798,CS,661675907,7430696,661675907,PN,951.02,15/05/2018
Capital Housing Revenue Account,Rewiring,HCE20,Capital Contract Payments,5000,1613,AWM Electrical Contractors Ltd,100051,24/05/2018,10259799,CS,661675907,7430696,661675907,PN,1935.6,15/05/2018
Housing Revenue Account,Gas Heating Systems,UMR01,R&M External Contractors,100,277.75,AWM Electrical Contractors Ltd,100051,24/05/2018,10259996,CS,661675907,7430696,661675907,PN,2196.88,21/05/2018
Housing Revenue Account,Electrical maintenance,UMR10,R&M External Contractors,100,1552.98,AWM Electrical Contractors Ltd,100051,24/05/2018,10259996,CS,661675907,7430696,661675907,PN,2196.88,21/05/2018
Housing Revenue Account,Repairs and Maintenance - Void works,UMR09,R&M External Contractors,100,766.36,AWM Electrical Contractors Ltd,100051,31/05/2018,10260119,CS,661675907,7430696,661675907,PN,945.43,24/05/2018
Housing Revenue Account,Multi-Storey Flats,MSF00,Other Miscellaneous Expenses,444,21.5,AWM Electrical Contractors Ltd,100051,31/05/2018,10260119,CS,661675907,7430696,661675907,PN,945.43,24/05/2018
Environment and Public Realm,Grounds Maintenance,PKS20,Training fees,11,525,APSE,100052,03/05/2018,10259263,TC,519286915,,519 2869 15,PI,630,27/04/2018
Capital Housing Revenue Account,Kitchen Modifications,HIK10,Capital Contract Payments,5000,7550.58,A C E Carpentry & Joinery Contractors Ltd,100085,10/05/2018,10259529,CS,729422428,4120783,729422428,PN,9060.7,08/05/2018
Capital Housing Revenue Account,Kitchen Modifications,HIK10,Capital Contract Payments,5000,3760,A C E Carpentry & Joinery Contractors Ltd,100085,10/05/2018,10259530,CS,729422428,4120783,729422428,PN,4512,08/05/2018
Capital Housing Revenue Account,Disabled Adaptations,HCR01,Capital Contract Payments,5000,325,A C E Carpentry & Joinery Contractors Ltd,100085,24/05/2018,10259660,CS,729422428,4120783,729422428,PN,6430.46,11/05/2018
Capital Housing Revenue Account,Kitchen Modifications,HIK10,Capital Contract Payments,5000,5033.72,A C E Carpentry & Joinery Contractors Ltd,100085,24/05/2018,10259660,CS,729422428,4120783,729422428,PN,6430.46,11/05/2018
Capital Housing Revenue Account,Kitchen Modifications,HIK10,Capital Contract Payments,5000,7550.58,A C E Carpentry & Joinery Contractors Ltd,100085,24/05/2018,10259909,CS,729422428,4120783,729422428,PN,9060.7,17/05/2018
Capital Housing Revenue Account,Kitchen Modifications,HIK10,Capital Contract Payments,5000,2732,A C E Carpentry & Joinery Contractors Ltd,100085,24/05/2018,10260012,CS,729422428,4120783,729422428,PN,3278.4,21/05/2018
Corporate Resources,Council Tax and NNDR Collection,CTX01,External Legal Costs,741,428.97,Bristow & Sutor,100159,10/05/2018,10259274,TC,294694111,,294694111,PN,1159.63,30/04/2018
Corporate Resources,Council Tax and NNDR Collection,CTX01,External Legal Costs,741,119.22,Bristow & Sutor,100159,10/05/2018,10259476,TC,294694111,,294694111,PN,523.14,04/05/2018
Corporate Resources,Council Tax and NNDR Collection,CTX01,External Legal Costs,741,81.94,Bristow & Sutor,100159,17/05/2018,10259763,TC,294694111,,294694111,PN,835.48,15/05/2018
Housing Revenue Account,Sheltered Housing,AGP00,Telephone Expenses,371,4232.18,British Telecommunications Plc,100161,24/05/2018,10259869,TC,245719348,,245719348,PN,5078.62,16/05/2018
Environment and Public Realm,Crematorium,CRM00,Telephone Expenses,371,1187.88,British Telecommunications Plc,100161,31/05/2018,10260156,TC,245719348,,245719348,PN,1425.46,24/05/2018
Communities and Homes,"Landlines, faxes, alarms & misc.",TEL02,Telephone Expenses,371,851.33,Bt Redcare,100221,17/05/2018,10259664,TC,GB245719348,,GB245719348,PN,1021.6,11/05/2018
Communities and Homes,Universal Credit Support,CAS04,Other Agencies,734,1178.1,Benn Partnership Centre,100235,17/05/2018,10259635,TC,,,,PI,1178.1,09/05/2018
Corporate Resources,Corporate Property Administration,CPA00,Subscriptions,421,305.5,Bsi,100291,17/05/2018,10259403,TC,243457071,,243457071,PN,733.2,02/05/2018
Environment and Public Realm,Parks,PKS00,Subscriptions,421,305.5,Bsi,100291,17/05/2018,10259403,TC,243457071,,243457071,PN,733.2,02/05/2018
Corporate Resources,Corporate Property R&M,CPA01,R&M External Contractors,100,908.9,Charles Watts Engineering Ltd,100302,03/05/2018,10259389,CS,272707159,466266,272 7071 59,PN,1090.68,02/05/2018
Corporate Resources,Corporate Property R&M,CPA01,R&M External Contractors,100,535.56,Chillaire Service & Maintenance Ltd,100305,31/05/2018,10259871,TC,806802244,4622016,806802244,PN,642.67,16/05/2018
Corporate Resources,Financial Services,RES10,Software Purchase,373,1000,Cipfa Business Ltd,100341,10/05/2018,10259475,TC,627390725,2376684,627390725,PN,1200,04/05/2018
Environment and Public Realm,Domestic Waste Collection/Recycling,REF00,Vehicle Repair and Maintenance,200,471.61,Dennis Eagle Ltd,100559,03/05/2018,10258668,TC,272496827,,272 4968 27,PN,565.93,10/04/2018
Environment and Public Realm,Domestic Waste Collection/Recycling,REF00,Vehicle Repair and Maintenance,200,2714.46,Dennis Eagle Ltd,100559,03/05/2018,10258670,TC,272496827,,272 4968 27,PN,3257.35,10/04/2018
Environment and Public Realm,Domestic Waste Collection/Recycling,REF00,Vehicle Repair and Maintenance,200,570.57,Dennis Eagle Ltd,100559,03/05/2018,10259153,TC,272496827,,272 4968 27,PN,684.68,24/04/2018
Environment and Public Realm,Domestic Waste Collection/Recycling,REF00,Vehicle Repair and Maintenance,200,589.57,Dennis Eagle Ltd,100559,31/05/2018,10260098,TC,272496827,,272 4968 27,PN,707.48,23/05/2018
Corporate Resources,Corporate Property R&M,CPA01,R&M External Contractors,100,620,Dunchurch Services (Rugby) Ltd,100565,31/05/2018,10260145,CS,623535748,2693688,623535748,PN,744,24/05/2018
Corporate Resources,Corporate Property Central Utilities,CPA02,Gas,131,1377.29,ESPO,100641,10/05/2018,10258920,TC,705180561,,705180561,PN,1652.75,17/04/2018
Corporate Resources,Corporate Property Central Utilities,CPA02,Gas,131,2221.51,ESPO,100641,10/05/2018,10258921,TC,705180561,,705180561,PN,2665.81,17/04/2018
Environment and Public Realm,WSU Depot,WDP00,Gas,131,817.21,ESPO,100641,10/05/2018,10258934,TC,705180561,,705180561,PN,980.65,17/04/2018
Corporate Resources,Corporate Property Central Utilities,CPA02,Gas,131,1177.31,ESPO,100641,31/05/2018,10259917,TC,705180561,,705180561,PN,1412.77,18/05/2018
Corporate Resources,Corporate Property Central Utilities,CPA02,Gas,131,1605.93,ESPO,100641,31/05/2018,10259918,TC,705180561,,705180561,PN,1927.12,18/05/2018
Housing Revenue Account,Albert Square AP,AGP20,Gas,131,999.62,ESPO,100641,31/05/2018,10259920,TC,705180561,,705180561,PN,1199.54,18/05/2018
Housing Revenue Account,Lesley Souter House AP,AGP16,Gas,131,844.05,ESPO,100641,31/05/2018,10259921,TC,705180561,,705180561,PN,1012.86,18/05/2018
Housing Revenue Account,Tanser Court AP,AGP17,Gas,131,862.17,ESPO,100641,31/05/2018,10259922,TC,705180561,,705180561,PN,1034.6,18/05/2018
Environment and Public Realm,WSU Depot,WDP00,Gas,131,572.03,ESPO,100641,24/05/2018,10259931,TC,705180561,,705180561,PN,686.44,18/05/2018
Environment and Public Realm,Crematorium,CRM00,Gas,131,1415.52,ESPO,100641,24/05/2018,10259942,TC,705180561,,705180561,PN,1698.62,18/05/2018
Capital Housing Revenue Account,Housing Window Replacement,HWR00,Capital Contract Payments,5000,3979.63,Nationwide Windows Ltd,100808,03/05/2018,10259299,CS,792405224,2025613,792405224,PN,4775.56,30/04/2018
Environment and Public Realm,Domestic Waste Collection/Recycling,REF00,Vehicle Repair and Maintenance,200,88.42,Ford & Slater,100817,03/05/2018,10259287,TC,565760807,,565 7608 07,PN,1295.75,30/04/2018
Housing Revenue Account,Unplanned Maintenance and Repair,UMR00,Vehicle Repair and Maintenance,200,69.24,Ford & Slater,100817,03/05/2018,10259287,TC,565760807,,565 7608 07,PN,1295.75,30/04/2018
Environment and Public Realm,Trade Waste Collection,WWC01,Vehicle Repair and Maintenance,200,65.17,Ford & Slater,100817,03/05/2018,10259287,TC,565760807,,565 7608 07,PN,1295.75,30/04/2018
Environment and Public Realm,Garage,WVR00,Materials,303,856.96,Ford & Slater,100817,03/05/2018,10259287,TC,565760807,,565 7608 07,PN,1295.75,30/04/2018
Environment and Public Realm,Parks,PKS00,Maintenance of Equipment,301,498,GB Sport & Leisure UK Ltd,100920,17/05/2018,10259622,TC,634552540,,634552540,PI,597.6,09/05/2018
Corporate Resources,Town Hall,OFF00,New Equipment,300,1297.92,IE Office Equipment Ltd,101114,03/05/2018,10259375,CS,661544339,,661544339,PI,1557.5,02/05/2018
Corporate Resources,Corporate Property R&M,CPA01,R&M External Contractors,100,4789.75,IE Office Equipment Ltd,101114,31/05/2018,10260150,CS,661544339,,661544339,PN,5747.7,24/05/2018
Housing Revenue Account,Unplanned Maintenance and Repair,UMR00,External Contractor & Operator,742,460.28,Clews Recycling Limited,101213,17/05/2018,10259839,TC,747316619,,747316619,PN,552.34,16/05/2018
Housing Revenue Account,Unplanned Maintenance and Repair,UMR00,External Contractor & Operator,742,640.28,Clews Recycling Limited,101213,24/05/2018,10260045,TC,747316619,,747316619,PN,768.34,22/05/2018
Environment and Public Realm,Street Furniture,HIG01,External Contractor & Operator,742,551.56,Nuneaton Signs Ltd,101371,31/05/2018,10260161,TC,355381251,7207123,355 381251,PI,661.87,24/05/2018
Growth and Investment,Visitor Centre,VSC00,Events Tickets - Zero Rated,1405,727.25,National Express Ltd,101392,03/05/2018,10259323,TC,487038714,,487038714,PN,727.25,02/05/2018
Housing Revenue Account,Sheltered Housing,AGP00,Telephone Expenses,371,271.93,EE Ltd t/a Orange Personal Communications,101404,17/05/2018,10259802,TC,529221751,,529221751,PN,5447.73,15/05/2018
Environment and Public Realm,Crematorium,CRM00,Telephone Expenses,371,11.75,EE Ltd t/a Orange Personal Communications,101404,17/05/2018,10259802,TC,529221751,,529221751,PN,5447.73,15/05/2018
Housing Revenue Account,Supervision and Management General,MAN00,Telephone Expenses,371,157.58,EE Ltd t/a Orange Personal Communications,101404,17/05/2018,10259802,TC,529221751,,529221751,PN,5447.73,15/05/2018
Housing Revenue Account,Property Maintenance,MAN23,Telephone Expenses,371,116.09,EE Ltd t/a Orange Personal Communications,101404,17/05/2018,10259802,TC,529221751,,529221751,PN,5447.73,15/05/2018
Housing Revenue Account,Voids & Allocations Team,MAN24,Telephone Expenses,371,69,EE Ltd t/a Orange Personal Communications,101404,17/05/2018,10259802,TC,529221751,,529221751,PN,5447.73,15/05/2018
Housing Revenue Account,Multi-Storey Flats,MSF00,Telephone Expenses,371,11.75,EE Ltd t/a Orange Personal Communications,101404,17/05/2018,10259802,TC,529221751,,529221751,PN,5447.73,15/05/2018
Communities and Homes,Mobile telephones,TEL03,Telephone Expenses,371,2694.59,EE Ltd t/a Orange Personal Communications,101404,17/05/2018,10259802,TC,529221751,,529221751,PN,5447.73,15/05/2018
Housing Revenue Account,Unplanned Maintenance and Repair,UMR00,Telephone Expenses,371,1201.33,EE Ltd t/a Orange Personal Communications,101404,17/05/2018,10259802,TC,529221751,,529221751,PN,5447.73,15/05/2018
Housing Revenue Account,Repairs and Maintenance - Void works,UMR09,Telephone Expenses,371,11.75,EE Ltd t/a Orange Personal Communications,101404,17/05/2018,10259802,TC,529221751,,529221751,PN,5447.73,15/05/2018
Environment and Public Realm,Sewage Disposal Plant,SDP00,R&M External Contractors,100,520.28,PJT Pumping Services,101438,31/05/2018,10260204,TC,618143943,,618143943,PN,624.34,25/05/2018
Environment and Public Realm,Parks,PKS00,R&M External Contractors,100,1750,Post To Post Fencing,101490,24/05/2018,10259877,CS,7729350133,,7729350133,PI,2370,16/05/2018
Environment and Public Realm,Parks,PKS00,External Contractor & Operator,742,225,Post To Post Fencing,101490,24/05/2018,10259877,CS,7729350133,,7729350133,PI,2370,16/05/2018
Capital Housing Revenue Account,Kitchen Modifications,HIK10,Capital Contract Payments,5000,16790,Reeds Plumbing & Heating Contractors Ltd,101504,24/05/2018,10259910,CS,418584732,4468782,418 5847 32,PN,20148,17/05/2018
Housing Revenue Account,Miscellaneous Unplanned Maintenance and Repair,UMR17,R&M External Contractors,100,1,Reeds Plumbing & Heating Contractors Ltd,101504,24/05/2018,10260013,CS,418584732,4468782,418 5847 32,PN,7051.2,21/05/2018
Capital Housing Revenue Account,Disabled Adaptations,HCR01,Capital Contract Payments,5000,5875,Reeds Plumbing & Heating Contractors Ltd,101504,24/05/2018,10260013,CS,418584732,4468782,418 5847 32,PN,7051.2,21/05/2018
Capital Housing Revenue Account,Bathroom Modifications,HIS01,Capital Contract Payments,5000,1090,Reeds Plumbing & Heating Contractors Ltd,101504,24/05/2018,10260023,CS,418584732,4468782,418 5847 32,PN,1308,21/05/2018
Housing Revenue Account,Miscellaneous Unplanned Maintenance and Repair,UMR17,R&M External Contractors,100,50,Reeds Plumbing & Heating Contractors Ltd,101504,24/05/2018,10260024,CS,418584732,4468782,418 5847 32,PN,10134,21/05/2018
Capital Housing Revenue Account,Kitchen Modifications,HIK10,Capital Contract Payments,5000,8395,Reeds Plumbing & Heating Contractors Ltd,101504,24/05/2018,10260024,CS,418584732,4468782,418 5847 32,PN,10134,21/05/2018
Growth and Investment,On Track,LSD04,Rates,141,895.49,Rugby Borough Council,101516,10/05/2018,10259193,NT,,,,PN,895.49,25/04/2018
Growth and Investment,On Track,LSD04,Rates,141,2016,Rugby Borough Council,101516,10/05/2018,10259194,NT,,,,PN,2016,25/04/2018
Communities and Homes,CAST - Private Sector Leasing,CAS03,Council Tax,142,1582.26,Rugby Borough Council,101516,10/05/2018,10259503,NT,,,,PN,1582.26,04/05/2018
Growth and Investment,Art Gallery and Museum,AGM00,Postage & Distribution,370,5.72,Royal Mail,101554,03/05/2018,10258838,TC,,,,PN,1724.76,16/04/2018
Growth and Investment,Building Control Services,BCS00,Postage & Distribution,370,0.58,Royal Mail,101554,03/05/2018,10258838,TC,,,,PN,1724.76,16/04/2018
Communities and Homes,CAST - Bed & Breakfast,CAS01,Postage & Distribution,370,83.98,Royal Mail,101554,03/05/2018,10258838,TC,,,,PN,1724.76,16/04/2018
Communities and Homes,Central Business Support Services,CSS15,Postage & Distribution,370,241.19,Royal Mail,101554,03/05/2018,10258838,TC,,,,PN,1724.76,16/04/2018
Corporate Resources,Council Tax and NNDR Collection,CTX01,Postage & Distribution,370,55.13,Royal Mail,101554,03/05/2018,10258838,TC,,,,PN,1724.76,16/04/2018
Executive Director Office,Electoral Registration,ERG00,Postage & Distribution,370,26.98,Royal Mail,101554,03/05/2018,10258838,TC,,,,PN,1724.76,16/04/2018
Housing Revenue Account,Supervision and Management General,MAN00,Postage & Distribution,370,16.99,Royal Mail,101554,03/05/2018,10258838,TC,,,,PN,1724.76,16/04/2018
Growth and Investment,Planning General/Income,PLN00,Postage & Distribution,370,122.96,Royal Mail,101554,03/05/2018,10258838,TC,,,,PN,1724.76,16/04/2018
Environment and Public Realm,Domestic Waste Collection/Recycling,REF00,Postage & Distribution,370,7.26,Royal Mail,101554,03/05/2018,10258838,TC,,,,PN,1724.76,16/04/2018
Communities and Homes,Household Green Waste Collections,REF06,Postage & Distribution,370,873.93,Royal Mail,101554,03/05/2018,10258838,TC,,,,PN,1724.76,16/04/2018
Housing Revenue Account,Unplanned Maintenance and Repair,UMR00,Postage & Distribution,370,2,Royal Mail,101554,03/05/2018,10258838,TC,,,,PN,1724.76,16/04/2018
Growth and Investment,Visitor Centre,VSC00,Postage & Distribution,370,0.58,Royal Mail,101554,03/05/2018,10258838,TC,,,,PN,1724.76,16/04/2018
Growth and Investment,Art Gallery and Museum,AGM00,Postage & Distribution,370,11.29,Royal Mail,101554,03/05/2018,10258842,TC,,,,PN,2814.51,16/04/2018
Growth and Investment,Building Control Services,BCS00,Postage & Distribution,370,11.72,Royal Mail,101554,03/05/2018,10258842,TC,,,,PN,2814.51,16/04/2018
Communities and Homes,CAST - Bed & Breakfast,CAS01,Postage & Distribution,370,135.03,Royal Mail,101554,03/05/2018,10258842,TC,,,,PN,2814.51,16/04/2018
Communities and Homes,Central Business Support Services,CSS15,Postage & Distribution,370,505.03,Royal Mail,101554,03/05/2018,10258842,TC,,,,PN,2814.51,16/04/2018
Corporate Resources,Council Tax and NNDR Collection,CTX01,Postage & Distribution,370,356.21,Royal Mail,101554,03/05/2018,10258842,TC,,,,PN,2814.51,16/04/2018
Executive Director Office,Electoral Registration,ERG00,Postage & Distribution,370,179.94,Royal Mail,101554,03/05/2018,10258842,TC,,,,PN,2814.51,16/04/2018
Housing Revenue Account,Supervision and Management General,MAN00,Postage & Distribution,370,216.29,Royal Mail,101554,03/05/2018,10258842,TC,,,,PN,2814.51,16/04/2018
Growth and Investment,Planning General/Income,PLN00,Postage & Distribution,370,72.58,Royal Mail,101554,03/05/2018,10258842,TC,,,,PN,2814.51,16/04/2018
Environment and Public Realm,Domestic Waste Collection/Recycling,REF00,Postage & Distribution,370,6.23,Royal Mail,101554,03/05/2018,10258842,TC,,,,PN,2814.51,16/04/2018
Communities and Homes,Household Green Waste Collections,REF06,Postage & Distribution,370,849.07,Royal Mail,101554,03/05/2018,10258842,TC,,,,PN,2814.51,16/04/2018
Growth and Investment,Visitor Centre,VSC00,Postage & Distribution,370,2.5,Royal Mail,101554,03/05/2018,10258842,TC,,,,PN,2814.51,16/04/2018
Growth and Investment,Art Gallery and Museum,AGM00,Postage & Distribution,370,3.48,Royal Mail,101554,24/05/2018,10259120,TC,,,,PN,2676.71,23/04/2018
Growth and Investment,Building Control Services,BCS00,Postage & Distribution,370,0.4,Royal Mail,101554,24/05/2018,10259120,TC,,,,PN,2676.71,23/04/2018
Communities and Homes,Community Advice & Support Team,CAS00,Postage & Distribution,370,283.66,Royal Mail,101554,24/05/2018,10259120,TC,,,,PN,2676.71,23/04/2018
Communities and Homes,Central Business Support Services,CSS15,Postage & Distribution,370,453.32,Royal Mail,101554,24/05/2018,10259120,TC,,,,PN,2676.71,23/04/2018
Corporate Resources,Council Tax and NNDR Collection,CTX01,Postage & Distribution,370,352.51,Royal Mail,101554,24/05/2018,10259120,TC,,,,PN,2676.71,23/04/2018
Executive Director Office,Electoral Registration,ERG00,Postage & Distribution,370,102.43,Royal Mail,101554,24/05/2018,10259120,TC,,,,PN,2676.71,23/04/2018
Housing Revenue Account,Supervision and Management General,MAN00,Postage & Distribution,370,403.26,Royal Mail,101554,24/05/2018,10259120,TC,,,,PN,2676.71,23/04/2018
Growth and Investment,Planning General/Income,PLN00,Postage & Distribution,370,102.67,Royal Mail,101554,24/05/2018,10259120,TC,,,,PN,2676.71,23/04/2018
Environment and Public Realm,Domestic Waste Collection/Recycling,REF00,Postage & Distribution,370,2.4,Royal Mail,101554,24/05/2018,10259120,TC,,,,PN,2676.71,23/04/2018
Environment and Public Realm,Household Green Waste Collections,REF06,Postage & Distribution,370,526.88,Royal Mail,101554,24/05/2018,10259120,TC,,,,PN,2676.71,23/04/2018
Executive Director Office,Electoral Registration,ERG00,Postage & Distribution,370,5797.17,Royal Mail,101554,03/05/2018,10259230,TC,,,,PN,6956.6,25/04/2018
Growth and Investment,Art Gallery and Museum,AGM00,Postage & Distribution,370,6.16,Royal Mail,101554,24/05/2018,10259333,TC,,,,PN,2708.41,02/05/2018
Growth and Investment,Building Control Services,BCS00,Postage & Distribution,370,1.56,Royal Mail,101554,24/05/2018,10259333,TC,,,,PN,2708.41,02/05/2018
Communities and Homes,Community Advice & Support Team,CAS00,Postage & Distribution,370,170.94,Royal Mail,101554,24/05/2018,10259333,TC,,,,PN,2708.41,02/05/2018
Communities and Homes,Central Business Support Services,CSS15,Postage & Distribution,370,289.56,Royal Mail,101554,24/05/2018,10259333,TC,,,,PN,2708.41,02/05/2018
Corporate Resources,Council Tax and NNDR Collection,CTX01,Postage & Distribution,370,931.21,Royal Mail,101554,24/05/2018,10259333,TC,,,,PN,2708.41,02/05/2018
Executive Director Office,Electoral Registration,ERG00,Postage & Distribution,370,50.19,Royal Mail,101554,24/05/2018,10259333,TC,,,,PN,2708.41,02/05/2018
Housing Revenue Account,Supervision and Management General,MAN00,Postage & Distribution,370,41.81,Royal Mail,101554,24/05/2018,10259333,TC,,,,PN,2708.41,02/05/2018
Growth and Investment,Planning General/Income,PLN00,Postage & Distribution,370,280.72,Royal Mail,101554,24/05/2018,10259333,TC,,,,PN,2708.41,02/05/2018
Environment and Public Realm,Domestic Waste Collection/Recycling,REF00,Postage & Distribution,370,24.59,Royal Mail,101554,24/05/2018,10259333,TC,,,,PN,2708.41,02/05/2018
Environment and Public Realm,Household Green Waste Collections,REF06,Postage & Distribution,370,460.26,Royal Mail,101554,24/05/2018,10259333,TC,,,,PN,2708.41,02/05/2018
Growth and Investment,Art Gallery and Museum,AGM00,Postage & Distribution,370,13.14,Royal Mail,101554,24/05/2018,10259516,TC,,,,PN,2803.37,08/05/2018
Growth and Investment,Building Control Services,BCS00,Postage & Distribution,370,1.01,Royal Mail,101554,24/05/2018,10259516,TC,,,,PN,2803.37,08/05/2018
Communities and Homes,Community Advice & Support Team,CAS00,Postage & Distribution,370,277.33,Royal Mail,101554,24/05/2018,10259516,TC,,,,PN,2803.37,08/05/2018
Communities and Homes,Central Business Support Services,CSS15,Postage & Distribution,370,1192.9,Royal Mail,101554,24/05/2018,10259516,TC,,,,PN,2803.37,08/05/2018
Corporate Resources,Council Tax and NNDR Collection,CTX01,Postage & Distribution,370,354.4,Royal Mail,101554,24/05/2018,10259516,TC,,,,PN,2803.37,08/05/2018
Executive Director Office,Electoral Registration,ERG00,Postage & Distribution,370,37.38,Royal Mail,101554,24/05/2018,10259516,TC,,,,PN,2803.37,08/05/2018
Housing Revenue Account,Supervision and Management General,MAN00,Postage & Distribution,370,60.33,Royal Mail,101554,24/05/2018,10259516,TC,,,,PN,2803.37,08/05/2018
Growth and Investment,Planning General/Income,PLN00,Postage & Distribution,370,157.58,Royal Mail,101554,24/05/2018,10259516,TC,,,,PN,2803.37,08/05/2018
Environment and Public Realm,Domestic Waste Collection/Recycling,REF00,Postage & Distribution,370,4.68,Royal Mail,101554,24/05/2018,10259516,TC,,,,PN,2803.37,08/05/2018
Environment and Public Realm,Household Green Waste Collections,REF06,Postage & Distribution,370,219.69,Royal Mail,101554,24/05/2018,10259516,TC,,,,PN,2803.37,08/05/2018
Growth and Investment,Visitor Centre,VSC00,Postage & Distribution,370,19.16,Royal Mail,101554,24/05/2018,10259516,TC,,,,PN,2803.37,08/05/2018
Executive Director Office,Electoral Services,ELC00,Postage & Distribution,370,4016.17,Royal Mail,101554,24/05/2018,10259669,TC,,,,PN,4819.4,11/05/2018
Growth and Investment,Art Gallery and Museum,AGM00,Postage & Distribution,370,0.4,Royal Mail,101554,24/05/2018,10259820,TC,,,,PN,1300.68,15/05/2018
Growth and Investment,Building Control Services,BCS00,Postage & Distribution,370,0.62,Royal Mail,101554,24/05/2018,10259820,TC,,,,PN,1300.68,15/05/2018
Communities and Homes,Community Advice & Support Team,CAS00,Postage & Distribution,370,127.44,Royal Mail,101554,24/05/2018,10259820,TC,,,,PN,1300.68,15/05/2018
Communities and Homes,Central Business Support Services,CSS15,Postage & Distribution,370,225.79,Royal Mail,101554,24/05/2018,10259820,TC,,,,PN,1300.68,15/05/2018
Corporate Resources,Council Tax and NNDR Collection,CTX01,Postage & Distribution,370,249.28,Royal Mail,101554,24/05/2018,10259820,TC,,,,PN,1300.68,15/05/2018
Executive Director Office,Electoral Registration,ERG00,Postage & Distribution,370,74.31,Royal Mail,101554,24/05/2018,10259820,TC,,,,PN,1300.68,15/05/2018
Housing Revenue Account,Supervision and Management General,MAN00,Postage & Distribution,370,43.76,Royal Mail,101554,24/05/2018,10259820,TC,,,,PN,1300.68,15/05/2018
Growth and Investment,Planning General/Income,PLN00,Postage & Distribution,370,65.05,Royal Mail,101554,24/05/2018,10259820,TC,,,,PN,1300.68,15/05/2018
Environment and Public Realm,Domestic Waste Collection/Recycling,REF00,Postage & Distribution,370,5.79,Royal Mail,101554,24/05/2018,10259820,TC,,,,PN,1300.68,15/05/2018
Environment and Public Realm,Household Green Waste Collections,REF06,Postage & Distribution,370,282.83,Royal Mail,101554,24/05/2018,10259820,TC,,,,PN,1300.68,15/05/2018
Growth and Investment,Visitor Centre,VSC00,Postage & Distribution,370,8.98,Royal Mail,101554,24/05/2018,10259820,TC,,,,PN,1300.68,15/05/2018
Corporate Resources,Corporate Property Central Utilities,CPA02,Water Services,143,1002.73,Water Plus,101610,10/05/2018,10259025,TC,,,,PN,1002.73,19/04/2018
Corporate Resources,Corporate Property Central Utilities,CPA02,Water Services,143,-1061.54,Water Plus,101610,10/05/2018,10259206,TC,,,,PN,-1061.54,25/04/2018
Housing Revenue Account,Lesley Souter House AP,AGP16,Water Services,143,2149.53,Water Plus,101610,03/05/2018,10259241,TC,,,,PN,2149.53,27/04/2018
Corporate Resources,Corporate Property Central Utilities,CPA02,Water Services,143,1707.56,Water Plus,101610,17/05/2018,10259302,TC,,,,PN,1707.56,30/04/2018
Corporate Resources,Corporate Property Central Utilities,CPA02,Water Services,143,803.33,Water Plus,101610,17/05/2018,10259514,TC,,,,PN,803.33,08/05/2018
Corporate Resources,Corporate Property R&M,CPA01,Water Services,143,773.42,Water Plus,101610,31/05/2018,10259525,TC,,,,PN,773.42,08/05/2018
Corporate Resources,Corporate Property Central Utilities,CPA02,Water Services,143,685.36,Water Plus,101610,10/05/2018,10259538,TC,,,,PN,685.36,08/05/2018
Corporate Resources,Corporate Property R&M,CPA01,Water Services,143,-883.28,Water Plus,101610,31/05/2018,10260047,TC,,,,PN,-883.28,22/05/2018
Corporate Resources,Corporate Property Central Utilities,CPA02,Water Services,143,2371.37,Water Plus,101610,31/05/2018,10260126,TC,,,,PN,2371.37,24/05/2018
Housing Revenue Account,Frederick Press Way AP,AGP06,New Equipment,300,3821,Steve Diston Contract Flooring,101668,24/05/2018,10259823,TC,565742025,,565 7420 25,PN,4585.2,15/05/2018
Corporate Resources,Corporate Property R&M,CPA01,R&M External Contractors,100,699.47,Secom Plc,101671,10/05/2018,10259058,TC,445838322,2585807,445838322,PN,839.36,19/04/2018
Environment and Public Realm,Domestic Waste Collection/Recycling,REF00,Tyres,205,1619.64,HI-Q Motorway,101736,03/05/2018,10259074,TC,100159429,,100159429,PN,1943.57,20/04/2018
Environment and Public Realm,Domestic Waste Collection/Recycling,REF00,Tyres,205,1277.22,HI-Q Motorway,101736,03/05/2018,10259075,TC,100159429,,100159429,PN,1874.66,20/04/2018
Environment and Public Realm,Household Green Waste Collections,REF06,Tyres,205,285,HI-Q Motorway,101736,03/05/2018,10259075,TC,100159429,,100159429,PN,1874.66,20/04/2018
Environment and Public Realm,Domestic Waste Collection/Recycling,REF00,Tyres,205,1497.22,HI-Q Motorway,101736,31/05/2018,10260030,TC,100159429,,100159429,PN,2161.86,21/05/2018
Environment and Public Realm,Household Green Waste Collections,REF06,Tyres,205,80,HI-Q Motorway,101736,31/05/2018,10260030,TC,100159429,,100159429,PN,2161.86,21/05/2018
Environment and Public Realm,Trade Waste Collection,WWC01,Tyres,205,224.33,HI-Q Motorway,101736,31/05/2018,10260030,TC,100159429,,100159429,PN,2161.86,21/05/2018
Environment and Public Realm,Domestic Waste Collection/Recycling,REF00,Tyres,205,1575.31,HI-Q Motorway,101736,31/05/2018,10260031,TC,100159429,,100159429,PN,2810.59,21/05/2018
Environment and Public Realm,Trade Waste Collection,WWC01,Tyres,205,766.85,HI-Q Motorway,101736,31/05/2018,10260031,TC,100159429,,100159429,PN,2810.59,21/05/2018
Environment and Public Realm,Street Furniture,HIG01,External Contractor & Operator,742,598.91,Egbert H. Taylor & Co Ltd,101741,10/05/2018,10259466,TC,695267487,718441,695 2674 87,PI,718.69,03/05/2018
Growth and Investment,Planning General/Income,PLN00,Training fees,11,2100,Trevor Roberts Associates,101744,31/05/2018,10260149,TC,389889940,,389 8899 40,PN,2520,24/05/2018
Environment and Public Realm,Domestic Waste Collection/Recycling,REF00,Vehicle Repair and Maintenance,200,872.07,Terberg Matec UK,101761,03/05/2018,10258955,TC,560878510,,560 8785 10,PN,1046.48,17/04/2018
Environment and Public Realm,Domestic Waste Collection/Recycling,REF00,Vehicle Repair and Maintenance,200,847.16,Terberg Matec UK,101761,03/05/2018,10258983,TC,560878510,,560 8785 10,PN,1016.58,18/04/2018
Environment and Public Realm,Domestic Waste Collection/Recycling,REF00,Vehicle Repair and Maintenance,200,1453.36,Terberg Matec UK,101761,03/05/2018,10259242,TC,560878510,,560 8785 10,PN,1921.52,27/04/2018
Environment and Public Realm,Trade Waste Collection,WWC01,Vehicle Repair and Maintenance,200,147.91,Terberg Matec UK,101761,03/05/2018,10259242,TC,560878510,,560 8785 10,PN,1921.52,27/04/2018
Environment and Public Realm,Domestic Waste Collection/Recycling,REF00,Vehicle Repair and Maintenance,200,528.93,Terberg Matec UK,101761,10/05/2018,10259540,TC,560878510,,560 8785 10,PN,822.78,08/05/2018
Environment and Public Realm,Trade Waste Collection,WWC01,Vehicle Repair and Maintenance,200,156.72,Terberg Matec UK,101761,10/05/2018,10259540,TC,560878510,,560 8785 10,PN,822.78,08/05/2018
Environment and Public Realm,Domestic Waste Collection/Recycling,REF00,Vehicle Repair and Maintenance,200,219.34,Terberg Matec UK,101761,31/05/2018,10260048,TC,560878510,,560 8785 10,PN,1219.72,22/05/2018
Environment and Public Realm,Household Green Waste Collections,REF06,Vehicle Repair and Maintenance,200,60.78,Terberg Matec UK,101761,31/05/2018,10260048,TC,560878510,,560 8785 10,PN,1219.72,22/05/2018
Environment and Public Realm,Trade Waste Collection,WWC01,Vehicle Repair and Maintenance,200,736.14,Terberg Matec UK,101761,31/05/2018,10260048,TC,560878510,,560 8785 10,PN,1219.72,22/05/2018
Environment and Public Realm,Trade Waste Collection,WWC01,Removal of Waste - WCC,711,95268.72,Warwickshire County Council,101893,03/05/2018,10259064,TC,272426659,,272426659,PN,111094.8,20/04/2018
Environment and Public Realm,Parks,PKS00,External Contractor & Operator,742,3941.38,Warwickshire County Council,101893,24/05/2018,10259607,TC,272426659,,272426659,PN,5507.75,09/05/2018
Environment and Public Realm,Grounds Maintenance,PKS20,External Contractor & Operator,742,778.09,Warwickshire County Council,101893,24/05/2018,10259607,TC,272426659,,272426659,PN,5507.75,09/05/2018
Environment and Public Realm,Crime and Disorder Activities,CAD00,Payments to Other Local Authorities,710,1832,Warwickshire County Council,101893,24/05/2018,10260070,TC,272426659,,272426659,PI,1832,23/05/2018
Environment and Public Realm,Domestic Waste Collection/Recycling,REF00,Vehicle Repair and Maintenance,200,11097.23,Watling JCB Limited,101922,31/05/2018,10259959,TC,115944076,,115 9440 76,PN,13316.68,18/05/2018
Capital Housing Revenue Account,Heating Upgrades,HIM01,Capital Contract Payments,5000,10636.43,Adroit Services Ltd,101939,24/05/2018,10259648,CS,812650159,4729393,812650159,PN,12763.72,11/05/2018
Capital Housing Revenue Account,Heating Upgrades,HIM01,Capital Contract Payments,5000,4242.65,Adroit Services Ltd,101939,24/05/2018,10259649,CS,812650159,4729393,812650159,PN,5091.18,11/05/2018
Environment and Public Realm,Street Furniture,LEI22,Capital Contract Payments,5000,2023,Furnitubes International Ltd,102084,03/05/2018,10259309,TC,299432317,1331689,299432317,PI,2427.6,30/04/2018
Corporate Resources,Corporate Property R&M,CPA01,R&M External Contractors,100,1601,Wallgate Ltd,107425,03/05/2018,10259283,TC,188203945,156022,188203945,PN,1921.2,30/04/2018
Corporate Resources,Corporate Property R&M,CPA01,R&M External Contractors,100,558,Ser-Tec Systems Ltd,108074,03/05/2018,10259346,CS,436865026,2027772,436865026,PN,669.6,02/05/2018
Corporate Resources,Corporate Property R&M,CPA01,R&M External Contractors,100,1137,Ser-Tec Systems Ltd,108074,03/05/2018,10259357,CS,436865026,2027772,436865026,PN,1364.4,02/05/2018
Environment and Public Realm,Town Centre Public Conveniences,PCS00,Building cleaning,170,1050,1st Class Hygiene Ltd,110029,17/05/2018,10259740,TC,715230275,,715230275,PN,1260,14/05/2018
Environment and Public Realm,Town Centre Public Conveniences,PCS00,Building cleaning,170,838,1st Class Hygiene Ltd,110029,17/05/2018,10259742,TC,715230275,,715230275,PN,1005.6,14/05/2018
Environment and Public Realm,Garage,WVR00,Materials,303,2356,Watson Petroleum,110361,31/05/2018,10260111,TC,195046059,,195046059,PI,2827.2,23/05/2018
Communities and Homes,Rewiring - Ashwood Court,HCE34,Capital Contract Payments,5000,2775.91,Croxford Electrical Ltd,110451,10/05/2018,10259246,CS,307440876,7751876,307 4408 76,PN,3331.1,27/04/2018
Corporate Resources,Corporate Property R&M,CPA01,R&M External Contractors,100,1145.26,Croxford Electrical Ltd,110451,10/05/2018,10259447,CS,307440876,7751876,307 4408 76,PN,1374.31,03/05/2018
Communities and Homes,Rewiring - Ashwood Court,HCE34,Capital Contract Payments,5000,2680.25,Croxford Electrical Ltd,110451,10/05/2018,10259523,CS,307440876,7751876,307 4408 76,PN,3216.3,08/05/2018
Corporate Resources,Corporate Property R&M,CPA01,R&M External Contractors,100,636.81,Croxford Electrical Ltd,110451,17/05/2018,10259717,CS,307440876,7751876,307 4408 76,PN,764.17,11/05/2018
Corporate Resources,Corporate Property R&M,CPA01,R&M External Contractors,100,997.7,Croxford Electrical Ltd,110451,31/05/2018,10260055,CS,307440876,7751876,307 4408 76,PN,1197.24,22/05/2018
Environment and Public Realm,Garage,WVR00,Materials,303,520,Vision Techniques (UK) LTD,111526,03/05/2018,10259250,TC,712562946,,712562946,PN,624,27/04/2018
Environment and Public Realm,Garage,WVR00,Materials,303,520,Vision Techniques (UK) LTD,111526,31/05/2018,10260058,TC,712562946,,712562946,PN,624,22/05/2018
Executive Director Office,Civic Responsibilities,CIV00,Other Miscellaneous Expenses,444,825,The Chefs Kitchen (UK) Limited,111682,31/05/2018,10260160,TC,765564984,,765 5649 84,PI,990,24/05/2018
Communities and Homes,Maintenance of Customer Services Systems,CIS21,Software Maintenance,374,2812,Civica UK Ltd,112724,17/05/2018,10259351,TC,391171065,1909454,391171065,PN,3374.4,02/05/2018
Communities and Homes,Maintenance of Customer Services Systems,CIS21,Software Maintenance,374,3000,Civica UK Ltd,112724,17/05/2018,10259736,TC,391171065,1909454,391171065,PI,3600,11/05/2018
Executive Director Office,Mayoral Services,May-00,Other Miscellaneous Expenses,444,880.95,Thomas Fattorini Ltd,112742,10/05/2018,10259421,TC,343412878,,343412878,PI,1057.14,02/05/2018
Growth and Investment,Visitor Centre,VSC00,Events Tickets - Standard Rated,1404,7723.9,Catteralls Coach and Travel Services,113835,10/05/2018,10259572,TC,3760050457,1698062,3760050457,PN,7723.9,09/05/2018
Communities and Homes,CL Grants,CGS00,Grants To Voluntary Organisations,720,1301.01,Long Lawford Memorial Hall,114446,17/05/2018,10259770,TC,,,,PN,1301.01,15/05/2018
Environment and Public Realm,Regulatory Services,REG00,Other Insurance Premiums,440,728,Zurich Insurance plc,116530,24/05/2018,10260083,TC,107831677,,107831677,PN,728,23/05/2018
Communities and Homes,Community Advice & Support Team,CAS00,Other,763,3780,Airey Consultancy Services Ltd,117127,24/05/2018,10259552,TC,709672706,,709672706,PN,4536,08/05/2018
Capital Corporate Resources,Corporate Property Enhancements,CPE00,Capital Contract Payments,5000,12245,Chillaire Ltd,117596,10/05/2018,10259576,CS,,2686557,,PN,14694,09/05/2018
Environment and Public Realm,Cemeteries General,CEM00,External Contractor & Operator,742,737.5,Lushglen,117749,31/05/2018,10260237,TC,642047363,,642047363,PN,1215,29/05/2018
Environment and Public Realm,Crematorium,CRM00,External Contractor & Operator,742,275,Lushglen,117749,31/05/2018,10260237,TC,642047363,,642047363,PN,1215,29/05/2018
Housing Revenue Account,Repairs and Maintenance - Void works,UMR09,Contract Hire,220,600.79,Brandon Tool Hire,118489,17/05/2018,10259317,TC,137582844,,137582844,PN,720.95,02/05/2018
Housing Revenue Account,Repairs and Maintenance - Void works,UMR09,Contract Hire,220,428.04,Brandon Tool Hire,118489,24/05/2018,10259995,TC,137582844,,137582844,PN,513.65,21/05/2018
Housing Revenue Account,Estate Management,MAN22,Estates,457,525,MPCS Services,119391,17/05/2018,10259786,TC,,,,PI,525,15/05/2018
Communities and Homes,Maintenance of Customer Services Systems,CIS21,Software Maintenance,374,1105.42,Northgate Public Services (UK)  Ltd,121606,24/05/2018,10259166,TC,207588545,968498,207588545,PN,1326.5,24/04/2018
Environment and Public Realm,Car Parks General,CPK01,External Legal Costs,741,5000,Travelers Insurance Co,121642,24/05/2018,10260095,TC,,,,PN,5000,23/05/2018
Environment and Public Realm,Parks,PKS00,Maintenance of Equipment,301,3782.21,Proludic,123148,10/05/2018,10259214,CS,796632872,,796632872,PI,4538.63,25/04/2018
Environment and Public Realm,Parks,PKS00,Materials,303,1350,Rigby Taylor Ltd,123342,17/05/2018,10259638,TC,354646243,,354646243,PI,1350,09/05/2018
Housing Revenue Account,Miscellaneous Unplanned Maintenance and Repair,UMR17,R&M External Contractors,100,850,Dolphin Lifts Midlands Ltd,123353,24/05/2018,10259954,TC,901579526,6262204,901579526,PN,1020,18/05/2018
Growth and Investment,Visitor Centre,VSC00,Publicity & Marketing,377,1275,Krishna Enterprises Ltd T/A Steers Printing,123590,17/05/2018,10259879,TC,844218628,,844218628,PN,1275,16/05/2018
Outside portfolio expenditure,Balance Sheet,BS,Car Loan Scheme,9261,1900,Personal Redacted Data,125237,17/05/2018,10259881,NT,,,,PN,1900,16/05/2018
Environment and Public Realm,Trade Waste Collection,WWC01,Training fees,11,1110,J Coates HGV Services Ltd,125604,10/05/2018,10259264,TC,113896949,,113896949,PI,1309,27/04/2018
Environment and Public Realm,Domestic Waste Collection/Recycling,REF00,Training fees,11,712,J Coates HGV Services Ltd,125604,24/05/2018,10259841,TC,113896949,,113896949,PN,1309,16/05/2018
Environment and Public Realm,Street Cleansing General,STC00,Training fees,11,398,J Coates HGV Services Ltd,125604,24/05/2018,10259841,TC,113896949,,113896949,PN,1309,16/05/2018
Environment and Public Realm,Domestic Waste Collection/Recycling,REF00,Training fees,11,1110,J Coates HGV Services Ltd,125604,24/05/2018,10259843,TC,113896949,,113896949,PN,1309,16/05/2018
Environment and Public Realm,Garage,WVR00,Materials,303,605.83,Shell U.K. Oil Products Limited,125672,10/05/2018,10259446,TC,235763255,,235 763 255,PN,727,03/05/2018
Growth and Investment,Sports and Recreation,LSD03,Training fees,11,5666,The Open University,125783,31/05/2018,10260113,TC,,,,PI,5666,23/05/2018
Executive Director Office,Electoral Services,ELC00,External Printing,352,11937.25,Print.UK.Com,129503,10/05/2018,10259353,TC,584533812,2691346,584533812,PN,14324.7,02/05/2018
Communities and Homes,Central Business Support Services,CSS15,Stationery Supplies,350,536.24,Lyreco,129956,03/05/2018,10259370,TC,927265703,,927265703,PI,643.49,02/05/2018
Environment and Public Realm,Parks,PKS00,Maintenance of Equipment,301,1330,I D Welding & Fabrications,131407,03/05/2018,10258065,CS,687567859,,687567859,PI,1596,22/03/2018
Environment and Public Realm,Parks,PKS00,Maintenance of Equipment,301,440,I D Welding & Fabrications,131407,03/05/2018,10258345,CS,687567859,,687567859,PI,690,29/03/2018
Environment and Public Realm,Section 106 Grounds Maintenance,PKS16,External Contractor & Operator,742,135,I D Welding & Fabrications,131407,03/05/2018,10258345,CS,687567859,,687567859,PI,690,29/03/2018
Environment and Public Realm,Parks,PKS00,Maintenance of Equipment,301,575,I D Welding & Fabrications,131407,03/05/2018,10258723,CS,687567859,,687567859,PI,690,11/04/2018
Environment and Public Realm,Section 106 Grounds Maintenance,PKS16,External Contractor & Operator,742,2644,I D Welding & Fabrications,131407,10/05/2018,10259215,CS,687567859,,687567859,PI,3172.8,25/04/2018
Environment and Public Realm,Parks,PKS00,External Contractor & Operator,742,2524,I D Welding & Fabrications,131407,17/05/2018,10259783,CS,687567859,,687567859,PI,3028.8,15/05/2018
Environment and Public Realm,Parks,PKS00,External Contractor & Operator,742,924,I D Welding & Fabrications,131407,24/05/2018,10259963,CS,687567859,,687567859,PI,1108.8,18/05/2018
Environment and Public Realm,Car Parks General,CPK01,Cash Collection,744,1068.6,Jade Security Services Ltd,131711,10/05/2018,10259526,TC,642505654,,642505654,PN,1282.32,08/05/2018
Capital Housing Revenue Account,Disabled Adaptations,HCR01,Capital Contract Payments,5000,552,D K Builders,131946,10/05/2018,10259537,TC,890892572,9067282,890892572,PN,662.4,08/05/2018
Communities and Homes,CAST - Bed & Breakfast,CAS01,Bed and Breakfast Temporary Accommodation,146,1449,Personal Redacted Data,132033,31/05/2018,10260131,TC,,,,PN,1449,24/05/2018
Growth and Investment,Town Centre CCTV and Management,TVM00,Other Agencies,734,21460.59,Rugby First Ltd - BID,133176,24/05/2018,10259493,TC,874675571,,874675571,PN,25752.71,04/05/2018
Growth and Investment,Rugby Town Development Activities,VSC10,Development Activities,450,15000,Rugby First Ltd - BID,133176,17/05/2018,10259494,TC,874675571,,874675571,PN,18000,04/05/2018
Housing Revenue Account,Fire Alarm maintenance,UMR13,R&M External Contractors,100,4605.13,Sunfish Services Ltd,133886,24/05/2018,10259647,CS,845393893,,845393893,PN,5526.16,11/05/2018
Capital Housing Revenue Account,Disabled Adaptations,HCR01,Capital Contract Payments,5000,4130,Total Hygiene Ltd,136107,24/05/2018,10259558,TC,792449783,2489536,792449783,PN,4130,08/05/2018
Corporate Resources,Corporate Property Administration,CPA00,Professional Subscriptions,17,519,Personal Redacted Data,139449,03/05/2018,10257983,NT,,,,PN,519,21/03/2018
Growth and Investment,Planning General/Income,PLN00,Consultancy Costs,740,775,P Rhodes,140076,10/05/2018,10259439,TC,,,,PN,775,03/05/2018
Housing Revenue Account,Multi-Storey Flats,MSF00,External Contractor & Operator,742,32706.24,StoneWall Security Ltd,140775,10/05/2018,10259394,TC,937387578,6587546,937387578,PN,39247.49,02/05/2018
Housing Revenue Account,Multi-Storey Flats,MSF00,Other Miscellaneous Expenses,444,49059.36,StoneWall Security Ltd,140775,10/05/2018,10259395,TC,937387578,6587546,937387578,PN,58871.23,02/05/2018
Environment and Public Realm,Car Parks General,CPK01,External Contractor & Operator,742,641.7,StoneWall Security Ltd,140775,03/05/2018,10259396,TC,937387578,6587546,937387578,PN,770.04,02/05/2018
Environment and Public Realm,Crematorium,CRM00,Telephone Expenses,371,538,Zen Internet Ltd,141612,10/05/2018,10259409,TC,686049501,3101568,686049501,PN,645.6,02/05/2018
Communities and Homes,Broadband & internet,TEL01,Telephone Expenses,371,970.25,Zen Internet Ltd,141612,24/05/2018,10260053,TC,686049501,3101568,686049501,PN,1164.3,22/05/2018
Environment and Public Realm,Domestic Waste Collection/Recycling,REF00,External Contractor & Operator,742,41760.81,Pure Recycling (Warwick) Limited,141883,10/05/2018,10259468,TC,922427047,,922427047,PN,50112.97,04/05/2018
Housing Revenue Account,Estate Management,MAN22,Agency Staff,3,727.42,Comensura Limited,142471,03/05/2018,10258982,TC,755321145,4085767,755 3211 45,PN,12060.1,18/04/2018
Environment and Public Realm,Grounds Maintenance,PKS20,Agency Staff,3,400.4,Comensura Limited,142471,03/05/2018,10258982,TC,755321145,4085767,755 3211 45,PN,12060.1,18/04/2018
Growth and Investment,Planning General/Income,PLN00,Agency Staff,3,1508.31,Comensura Limited,142471,03/05/2018,10258982,TC,755321145,4085767,755 3211 45,PN,12060.1,18/04/2018
Growth and Investment,Gypsy and Traveller Enforcement,PLN10,Agency Staff,3,82.5,Comensura Limited,142471,03/05/2018,10258982,TC,755321145,4085767,755 3211 45,PN,12060.1,18/04/2018
Environment and Public Realm,Domestic Waste Collection/Recycling,REF00,Agency Staff,3,6601.84,Comensura Limited,142471,03/05/2018,10258982,TC,755321145,4085767,755 3211 45,PN,12060.1,18/04/2018
Environment and Public Realm,Street Cleansing General,STC00,Agency Staff,3,729.62,Comensura Limited,142471,03/05/2018,10258982,TC,755321145,4085767,755 3211 45,PN,12060.1,18/04/2018
Housing Revenue Account,Estate Management,MAN22,Agency Staff,3,662.95,Comensura Limited,142471,03/05/2018,10259198,TC,755321145,4085767,755 3211 45,PN,11788.11,25/04/2018
Environment and Public Realm,Grounds Maintenance,PKS20,Agency Staff,3,400.4,Comensura Limited,142471,03/05/2018,10259198,TC,755321145,4085767,755 3211 45,PN,11788.11,25/04/2018
Growth and Investment,Planning General/Income,PLN00,Agency Staff,3,1531.26,Comensura Limited,142471,03/05/2018,10259198,TC,755321145,4085767,755 3211 45,PN,11788.11,25/04/2018
Environment and Public Realm,Domestic Waste Collection/Recycling,REF00,Agency Staff,3,6146.33,Comensura Limited,142471,03/05/2018,10259198,TC,755321145,4085767,755 3211 45,PN,11788.11,25/04/2018
Environment and Public Realm,Street Cleansing General,STC00,Agency Staff,3,1082.56,Comensura Limited,142471,03/05/2018,10259198,TC,755321145,4085767,755 3211 45,PN,11788.11,25/04/2018
Housing Revenue Account,Estate Management,MAN22,Agency Staff,3,764.37,Comensura Limited,142471,10/05/2018,10259383,TC,755321145,4085767,755 3211 45,PN,9391.05,02/05/2018
Environment and Public Realm,Grounds Maintenance,PKS20,Agency Staff,3,704.82,Comensura Limited,142471,10/05/2018,10259383,TC,755321145,4085767,755 3211 45,PN,9391.05,02/05/2018
Growth and Investment,Planning General/Income,PLN00,Agency Staff,3,1505.16,Comensura Limited,142471,10/05/2018,10259383,TC,755321145,4085767,755 3211 45,PN,9391.05,02/05/2018
Environment and Public Realm,Domestic Waste Collection/Recycling,REF00,Agency Staff,3,4851.66,Comensura Limited,142471,10/05/2018,10259383,TC,755321145,4085767,755 3211 45,PN,9391.05,02/05/2018
Environment and Public Realm,Grounds Maintenance,PKS20,Agency Staff,3,1505.62,Comensura Limited,142471,17/05/2018,10259609,TC,755321145,4085767,755 3211 45,PN,9229,09/05/2018
Environment and Public Realm,Domestic Waste Collection/Recycling,REF00,Agency Staff,3,5371.29,Comensura Limited,142471,17/05/2018,10259609,TC,755321145,4085767,755 3211 45,PN,9229,09/05/2018
Environment and Public Realm,Street Cleansing General,STC00,Agency Staff,3,814,Comensura Limited,142471,17/05/2018,10259609,TC,755321145,4085767,755 3211 45,PN,9229,09/05/2018
Housing Revenue Account,Estate Management,MAN22,Agency Staff,3,1414.44,Comensura Limited,142471,24/05/2018,10259844,TC,755321145,4085767,755 3211 45,PN,10618.96,16/05/2018
Environment and Public Realm,Grounds Maintenance,PKS20,Agency Staff,3,735.19,Comensura Limited,142471,24/05/2018,10259844,TC,755321145,4085767,755 3211 45,PN,10618.96,16/05/2018
Growth and Investment,Planning General/Income,PLN00,Agency Staff,3,1027.74,Comensura Limited,142471,24/05/2018,10259844,TC,755321145,4085767,755 3211 45,PN,10618.96,16/05/2018
Environment and Public Realm,Domestic Waste Collection/Recycling,REF00,Agency Staff,3,5671.8,Comensura Limited,142471,24/05/2018,10259844,TC,755321145,4085767,755 3211 45,PN,10618.96,16/05/2018
Communities and Homes,Biart Place - Capital,BIA00,Capital Compensation Payments,5010,1750,Personal Redacted Data,143966,31/05/2018,10260211,NT,,,,PN,1750,29/05/2018
Executive Director Office,Members Expenses,MEM00,Conference & Seminar Fees,401,545,Local Government Association,144471,31/05/2018,10260014,TC,676078107,,676078107,PN,1308,21/05/2018
Executive Director Office,Executive Director,SMT00,Conference & Seminar Fees,401,545,Local Government Association,144471,31/05/2018,10260014,TC,676078107,,676078107,PN,1308,21/05/2018
Communities and Homes,Maintenance of Customer Services Systems,CIS21,Software Maintenance,374,4718,The Technology Forge,145065,31/05/2018,10260107,TC,492496307,2293004,492496307,PI,5661.6,23/05/2018
Corporate Resources,General Financial Services,GFS00,Consultancy Costs,740,1080,PSTAX,145204,10/05/2018,10258381,TC,815158828,4810070,815158828,PI,1296,03/04/2018
Corporate Resources,General Financial Services,GFS00,External Audit Fees,748,-623.33,Grant Thornton UK LLP,145501,24/05/2018,10259022,TC,835586102,,835586102,PN,-748,19/04/2018
Corporate Resources,General Financial Services,GFS00,External Audit Fees,748,6500,Grant Thornton UK LLP,145501,24/05/2018,10259829,TC,835586102,,835586102,PN,7800,15/05/2018
Environment and Public Realm,Safety and Resilience,EPL00,Training fees,11,955,Serco Ltd,146371,17/05/2018,10259737,TC,207523388,242246,207523388,PI,1146,11/05/2018
Environment and Public Realm,Street Furniture,LEI22,Capital Contract Payments,5000,8245,Larkin Engineering Enterprises LtdT/A Larkin Street Products,146442,31/05/2018,10260183,TC,4766413K,126530,4766413K,PI,8245,25/05/2018
Corporate Resources,Corporate Property Central Utilities,CPA02,Electricity,130,1862.2,Total Gas & Power Ltd,146631,10/05/2018,10258917,TC,689638949,2172239,689638949,PN,2182.5,16/04/2018
Corporate Resources,Corporate Property Central Utilities,CPA02,Electricity,130,8875.13,Total Gas & Power Ltd,146631,10/05/2018,10258918,TC,689638949,2172239,689638949,PN,12527.75,16/04/2018
Environment and Public Realm,Crematorium,CRM00,Electricity,130,1276.67,Total Gas & Power Ltd,146631,10/05/2018,10258918,TC,689638949,2172239,689638949,PN,12527.75,16/04/2018
Housing Revenue Account,Unplanned Maintenance and Repair,UMR00,Electricity,130,249.27,Total Gas & Power Ltd,146631,10/05/2018,10258918,TC,689638949,2172239,689638949,PN,12527.75,16/04/2018
Environment and Public Realm,WSU Depot,WDP00,Electricity,130,61.84,Total Gas & Power Ltd,146631,10/05/2018,10258918,TC,689638949,2172239,689638949,PN,12527.75,16/04/2018
Corporate Resources,Corporate Property Central Utilities,CPA02,Electricity,130,8876.19,Total Gas & Power Ltd,146631,31/05/2018,10259890,TC,689638949,2172239,689638949,PN,12348.07,17/05/2018
Environment and Public Realm,Crematorium,CRM00,Electricity,130,1181.45,Total Gas & Power Ltd,146631,31/05/2018,10259890,TC,689638949,2172239,689638949,PN,12348.07,17/05/2018
Housing Revenue Account,Unplanned Maintenance and Repair,UMR00,Electricity,130,201.34,Total Gas & Power Ltd,146631,31/05/2018,10259890,TC,689638949,2172239,689638949,PN,12348.07,17/05/2018
Environment and Public Realm,WSU Depot,WDP00,Electricity,130,50.75,Total Gas & Power Ltd,146631,31/05/2018,10259890,TC,689638949,2172239,689638949,PN,12348.07,17/05/2018
Corporate Resources,Corporate Property Central Utilities,CPA02,Electricity,130,1938.58,Total Gas & Power Ltd,146631,31/05/2018,10259891,TC,689638949,2172239,689638949,PN,2262.24,17/05/2018
Housing Revenue Account,Sheltered Housing,AGP00,Electricity,130,197.34,Total Gas & Power Ltd,146631,24/05/2018,10259915,TC,689638949,2172239,689638949,PN,10907.91,17/05/2018
Housing Revenue Account,Alfred Green Close AP,AGP01,Electricity,130,237.5,Total Gas & Power Ltd,146631,24/05/2018,10259915,TC,689638949,2172239,689638949,PN,10907.91,17/05/2018
Housing Revenue Account,Avon Court AP,AGP02,Electricity,130,204.97,Total Gas & Power Ltd,146631,24/05/2018,10259915,TC,689638949,2172239,689638949,PN,10907.91,17/05/2018
Housing Revenue Account,Dickinson Court AP,AGP03,Electricity,130,376.27,Total Gas & Power Ltd,146631,24/05/2018,10259915,TC,689638949,2172239,689638949,PN,10907.91,17/05/2018
Housing Revenue Account,Duffy Place AP,AGP04,Electricity,130,190.64,Total Gas & Power Ltd,146631,24/05/2018,10259915,TC,689638949,2172239,689638949,PN,10907.91,17/05/2018
Housing Revenue Account,Frederick Press Way AP,AGP06,Electricity,130,455.18,Total Gas & Power Ltd,146631,24/05/2018,10259915,TC,689638949,2172239,689638949,PN,10907.91,17/05/2018
Housing Revenue Account,John Thwaites Close AP,AGP08,Electricity,130,86.82,Total Gas & Power Ltd,146631,24/05/2018,10259915,TC,689638949,2172239,689638949,PN,10907.91,17/05/2018
Housing Revenue Account,Mercer Court AP,AGP09,Electricity,130,224.51,Total Gas & Power Ltd,146631,24/05/2018,10259915,TC,689638949,2172239,689638949,PN,10907.91,17/05/2018
Housing Revenue Account,Pettiver Crescent I AP,AGP10,Electricity,130,217.3,Total Gas & Power Ltd,146631,24/05/2018,10259915,TC,689638949,2172239,689638949,PN,10907.91,17/05/2018
Housing Revenue Account,Robotham Close AP,AGP11,Electricity,130,239.03,Total Gas & Power Ltd,146631,24/05/2018,10259915,TC,689638949,2172239,689638949,PN,10907.91,17/05/2018
Housing Revenue Account,Stacey Court AP,AGP12,Electricity,130,66.67,Total Gas & Power Ltd,146631,24/05/2018,10259915,TC,689638949,2172239,689638949,PN,10907.91,17/05/2018
Housing Revenue Account,Stretton Court AP,AGP13,Electricity,130,92.42,Total Gas & Power Ltd,146631,24/05/2018,10259915,TC,689638949,2172239,689638949,PN,10907.91,17/05/2018
Housing Revenue Account,Sun Street/Windsor Street AP,AGP14,Electricity,130,221.57,Total Gas & Power Ltd,146631,24/05/2018,10259915,TC,689638949,2172239,689638949,PN,10907.91,17/05/2018
Housing Revenue Account,Lesley Souter House AP,AGP16,Electricity,130,516.25,Total Gas & Power Ltd,146631,24/05/2018,10259915,TC,689638949,2172239,689638949,PN,10907.91,17/05/2018
Housing Revenue Account,Tanser Court AP,AGP17,Electricity,130,418.78,Total Gas & Power Ltd,146631,24/05/2018,10259915,TC,689638949,2172239,689638949,PN,10907.91,17/05/2018
Housing Revenue Account,Edward Court AP,AGP19,Electricity,130,230.38,Total Gas & Power Ltd,146631,24/05/2018,10259915,TC,689638949,2172239,689638949,PN,10907.91,17/05/2018
Housing Revenue Account,Albert Square AP,AGP20,Electricity,130,712.43,Total Gas & Power Ltd,146631,24/05/2018,10259915,TC,689638949,2172239,689638949,PN,10907.91,17/05/2018
Housing Revenue Account,Eliot Court AP,AGP25,Electricity,130,66.6,Total Gas & Power Ltd,146631,24/05/2018,10259915,TC,689638949,2172239,689638949,PN,10907.91,17/05/2018
Housing Revenue Account,Clare Court Site,AGP27,Electricity,130,29.87,Total Gas & Power Ltd,146631,24/05/2018,10259915,TC,689638949,2172239,689638949,PN,10907.91,17/05/2018
Housing Revenue Account,Alexandra/James Court AP,AGP30,Electricity,130,149.45,Total Gas & Power Ltd,146631,24/05/2018,10259915,TC,689638949,2172239,689638949,PN,10907.91,17/05/2018
Housing Revenue Account,Hirst Close AP,AGP33,Electricity,130,73.31,Total Gas & Power Ltd,146631,24/05/2018,10259915,TC,689638949,2172239,689638949,PN,10907.91,17/05/2018
Housing Revenue Account,Assheton Close AP,AGP36,Electricity,130,50.89,Total Gas & Power Ltd,146631,24/05/2018,10259915,TC,689638949,2172239,689638949,PN,10907.91,17/05/2018
Housing Revenue Account,Bennett Court/Warwick Road AP,AGP38,Electricity,130,37.6,Total Gas & Power Ltd,146631,24/05/2018,10259915,TC,689638949,2172239,689638949,PN,10907.91,17/05/2018
Housing Revenue Account,Brookside Pailton AP,AGP40,Electricity,130,51.37,Total Gas & Power Ltd,146631,24/05/2018,10259915,TC,689638949,2172239,689638949,PN,10907.91,17/05/2018
Housing Revenue Account,Clifton Road AP,AGP41,Electricity,130,19.12,Total Gas & Power Ltd,146631,24/05/2018,10259915,TC,689638949,2172239,689638949,PN,10907.91,17/05/2018
Housing Revenue Account,Deepmore Road/Lytham Road AP,AGP42,Electricity,130,152.56,Total Gas & Power Ltd,146631,24/05/2018,10259915,TC,689638949,2172239,689638949,PN,10907.91,17/05/2018
Housing Revenue Account,Edmondson Close Dunchurch AP,AGP44,Electricity,130,138.34,Total Gas & Power Ltd,146631,24/05/2018,10259915,TC,689638949,2172239,689638949,PN,10907.91,17/05/2018
Housing Revenue Account,Featherbed Lane I AP,AGP45,Electricity,130,171.28,Total Gas & Power Ltd,146631,24/05/2018,10259915,TC,689638949,2172239,689638949,PN,10907.91,17/05/2018
Housing Revenue Account,Fox Close AP,AGP47,Electricity,130,44.94,Total Gas & Power Ltd,146631,24/05/2018,10259915,TC,689638949,2172239,689638949,PN,10907.91,17/05/2018
Housing Revenue Account,Great Balance Brinklow AP,AGP48,Electricity,130,23.95,Total Gas & Power Ltd,146631,24/05/2018,10259915,TC,689638949,2172239,689638949,PN,10907.91,17/05/2018
Housing Revenue Account,Harold Cox Place AP,AGP51,Electricity,130,62.96,Total Gas & Power Ltd,146631,24/05/2018,10259915,TC,689638949,2172239,689638949,PN,10907.91,17/05/2018
Housing Revenue Account,Jackson Road I AP,AGP53,Electricity,130,26.69,Total Gas & Power Ltd,146631,24/05/2018,10259915,TC,689638949,2172239,689638949,PN,10907.91,17/05/2018
Housing Revenue Account,Lever Road I AP,AGP57,Electricity,130,137.86,Total Gas & Power Ltd,146631,24/05/2018,10259915,TC,689638949,2172239,689638949,PN,10907.91,17/05/2018
Housing Revenue Account,Meadow Way/Primrose Court AP,AGP58,Electricity,130,85.71,Total Gas & Power Ltd,146631,24/05/2018,10259915,TC,689638949,2172239,689638949,PN,10907.91,17/05/2018
Housing Revenue Account,Norman Road AP,AGP60,Electricity,130,10.12,Total Gas & Power Ltd,146631,24/05/2018,10259915,TC,689638949,2172239,689638949,PN,10907.91,17/05/2018
Housing Revenue Account,Patterdale AP,AGP61,Electricity,130,23.79,Total Gas & Power Ltd,146631,24/05/2018,10259915,TC,689638949,2172239,689638949,PN,10907.91,17/05/2018
Housing Revenue Account,The Kent AP,AGP67,Electricity,130,47.93,Total Gas & Power Ltd,146631,24/05/2018,10259915,TC,689638949,2172239,689638949,PN,10907.91,17/05/2018
Housing Revenue Account,Victoria Street/Lawford Road AP,AGP68,Electricity,130,13.11,Total Gas & Power Ltd,146631,24/05/2018,10259915,TC,689638949,2172239,689638949,PN,10907.91,17/05/2018
Housing Revenue Account,Parkfield Road/Lea Crescent AP,AGP71,Electricity,130,145.08,Total Gas & Power Ltd,146631,24/05/2018,10259915,TC,689638949,2172239,689638949,PN,10907.91,17/05/2018
Housing Revenue Account,Pennington Street/Round Street AP,AGP72,Electricity,130,96.17,Total Gas & Power Ltd,146631,24/05/2018,10259915,TC,689638949,2172239,689638949,PN,10907.91,17/05/2018
Housing Revenue Account,Control Centre CCTV,CCE01,Electricity,130,485.54,Total Gas & Power Ltd,146631,24/05/2018,10259915,TC,689638949,2172239,689638949,PN,10907.91,17/05/2018
Housing Revenue Account,Supervision and Management General,MAN00,Electricity,130,2367.33,Total Gas & Power Ltd,146631,24/05/2018,10259915,TC,689638949,2172239,689638949,PN,10907.91,17/05/2018
Housing Revenue Account,Multi-Storey Flats,MSF00,Electricity,130,547.13,Total Gas & Power Ltd,146631,24/05/2018,10259915,TC,689638949,2172239,689638949,PN,10907.91,17/05/2018
Communities and Homes,Woodside Park,TVR00,Electricity,130,394.53,Total Gas & Power Ltd,146631,24/05/2018,10259915,TC,689638949,2172239,689638949,PN,10907.91,17/05/2018
Environment and Public Realm,Weighbridge Digitalisation,WBD00,Capital Contract Payments,5000,5938,Weightron Bilanciai Limited,146759,24/05/2018,10253565,TC,458223052,,458223052,PI,7125.6,06/11/2017
Communities and Homes,Biart Place - Capital,BIA00,Capital Compensation Payments,5010,1750,Personal Redacted Data,146793,24/05/2018,10260000,NT,,,,PN,1750,21/05/2018
Housing Revenue Account,Unplanned Maintenance and Repair,UMR00,Training fees,11,1080,Environmental Essentials Ltd,146842,03/05/2018,10256995,TC,844887474,5097507,844887474,PN,1296,21/02/2018
Housing Revenue Account,Asbestos Surveys,UMR05,R&M External Contractors,100,888,Environmental Essentials Ltd,146842,03/05/2018,10259300,TC,844887474,5097507,844887474,PN,1065.6,30/04/2018
Housing Revenue Account,Multi-Storey Flats,MSF00,Other Miscellaneous Expenses,444,1329,Environmental Essentials Ltd,146842,03/05/2018,10259301,TC,844887474,5097507,844887474,PN,1594.8,30/04/2018
Corporate Resources,Retired Employees,RET00,Additional Pension Payments,14,9492,WCC Pension Fund,146914,10/05/2018,10259567,NT,,,,PN,9492,08/05/2018
Corporate Resources,Retired Employees,RET00,Employers' Superannuation Contribution,2,25916.67,WCC Pension Fund,146914,17/05/2018,10259654,NT,,,,PN,25916.67,11/05/2018
Communities and Homes,ITC & Support Services,CIS10,Hardware Maintenance,376,4539.11,NTA Monitor Ltd,147036,17/05/2018,10259791,TC,683337710,,683337710,PI,5446.93,15/05/2018
Environment and Public Realm,Domestic Waste Collection/Recycling,REF00,External Contractor & Operator,742,510,James Baxter Haulage Ltd,147159,03/05/2018,10259127,TC,620070986,,620070986,PN,612,23/04/2018
Environment and Public Realm,Domestic Waste Collection/Recycling,REF00,External Contractor & Operator,742,680,James Baxter Haulage Ltd,147159,10/05/2018,10259328,TC,620070986,,620070986,PN,816,02/05/2018
Environment and Public Realm,Domestic Waste Collection/Recycling,REF00,External Contractor & Operator,742,510,James Baxter Haulage Ltd,147159,10/05/2018,10259483,TC,620070986,,620070986,PN,612,04/05/2018
Environment and Public Realm,Domestic Waste Collection/Recycling,REF00,External Contractor & Operator,742,680,James Baxter Haulage Ltd,147159,10/05/2018,10259486,TC,620070986,,620070986,PN,816,04/05/2018
Environment and Public Realm,Domestic Waste Collection/Recycling,REF00,External Contractor & Operator,742,680,James Baxter Haulage Ltd,147159,31/05/2018,10259653,TC,620070986,,620070986,PN,816,11/05/2018
Environment and Public Realm,Domestic Waste Collection/Recycling,REF00,External Contractor & Operator,742,510,James Baxter Haulage Ltd,147159,31/05/2018,10259894,TC,620070986,,620070986,PN,612,17/05/2018
Environment and Public Realm,Domestic Waste Collection/Recycling,REF00,External Contractor & Operator,742,680,James Baxter Haulage Ltd,147159,31/05/2018,10260142,TC,620070986,,620070986,PN,816,24/05/2018
Growth and Investment,AGM Exhibitions/Outreach,AGM02,Other Miscellaneous Expenses,444,2125.65,Anna Conomos,147320,31/05/2018,10260175,TC,,,,PN,2125.65,25/05/2018
Capital Housing Revenue Account,Fire Risk Prevention Works,HCE18,Capital Contract Payments,5000,995.2,Arden Construction Ltd,147430,10/05/2018,10259415,CS,589378956,2722631,589378956,PN,1194.24,02/05/2018
Corporate Resources,Corporate Property R&M,CPA01,R&M External Contractors,100,518.75,Arden Construction Ltd,147430,31/05/2018,10260087,CS,589378956,2722631,589378956,PN,622.5,23/05/2018
Communities and Homes,Biart Place - Capital,BIA00,Capital Compensation Payments,5010,1500,Mr Martin Horrex,147626,31/05/2018,10260210,NT,,,,PN,1500,29/05/2018
Environment and Public Realm,Grounds Maintenance,PKS20,Vehicle Repair and Maintenance,200,721.96,Tallis Amos Group Limited,147758,17/05/2018,10259338,TC,377274127,,377274127,PN,866.35,02/05/2018
Environment and Public Realm,Grounds Maintenance,PKS20,Vehicle Repair and Maintenance,200,565.61,Tallis Amos Group Limited,147758,17/05/2018,10259339,TC,377274127,,377274127,PN,678.73,02/05/2018
Environment and Public Realm,Grounds Maintenance,PKS20,Vehicle Repair and Maintenance,200,789.07,Tallis Amos Group Limited,147758,17/05/2018,10259544,TC,377274127,,377274127,PN,946.87,08/05/2018
Corporate Resources,General Financial Services,GFS00,Subscriptions,421,500,District Councils Network,147843,10/05/2018,10259398,NT,227901313,,227901313,PN,600,02/05/2018
Communities and Homes,CAST - Private Sector Leasing,CAS03,Private Sector Leasing Scheme Properties,148,1605,Personal Redacted Data,147940,31/05/2018,10260177,TC,,,,PN,1605,25/05/2018
Corporate Resources,Corporate Property R&M,CPA01,R&M External Contractors,100,1650,Press & Starkey,148069,31/05/2018,10260041,TC,,,,PN,1980,22/05/2018
Housing Revenue Account,Sheltered Housing,AGP00,Recruitment Expenses,12,22,Team Prevent UK Ltd,148151,03/05/2018,10259061,TC,883064608,,883064608,PN,1244.9,19/04/2018
Communities and Homes,Management Support Services,CSS20,Recruitment Expenses,12,22,Team Prevent UK Ltd,148151,03/05/2018,10259061,TC,883064608,,883064608,PN,1244.9,19/04/2018
Communities and Homes,Apprenticeship Scheme,CSS25,Recruitment Expenses,12,22,Team Prevent UK Ltd,148151,03/05/2018,10259061,TC,883064608,,883064608,PN,1244.9,19/04/2018
Growth and Investment,Planning General/Income,PLN00,Recruitment Expenses,12,44,Team Prevent UK Ltd,148151,03/05/2018,10259061,TC,883064608,,883064608,PN,1244.9,19/04/2018
Corporate Resources,Human Resources Centralised Services,RES31,Recruitment Expenses,12,57.5,Team Prevent UK Ltd,148151,03/05/2018,10259061,TC,883064608,,883064608,PN,1244.9,19/04/2018
Housing Revenue Account,Unplanned Maintenance and Repair,UMR00,Recruitment Expenses,12,22,Team Prevent UK Ltd,148151,03/05/2018,10259061,TC,883064608,,883064608,PN,1244.9,19/04/2018
Housing Revenue Account,Sheltered Housing,AGP00,Employee wellbeing/Other employee expenses,21,22,Team Prevent UK Ltd,148151,03/05/2018,10259061,TC,883064608,,883064608,PN,1244.9,19/04/2018
Communities and Homes,ITC & Support Services,CIS10,Employee wellbeing/Other employee expenses,21,91,Team Prevent UK Ltd,148151,03/05/2018,10259061,TC,883064608,,883064608,PN,1244.9,19/04/2018
Environment and Public Realm,Highways,HIG20,Employee wellbeing/Other employee expenses,21,185,Team Prevent UK Ltd,148151,03/05/2018,10259061,TC,883064608,,883064608,PN,1244.9,19/04/2018
Environment and Public Realm,Grounds Maintenance,PKS20,Employee wellbeing/Other employee expenses,21,91,Team Prevent UK Ltd,148151,03/05/2018,10259061,TC,883064608,,883064608,PN,1244.9,19/04/2018
Environment and Public Realm,Domestic Waste Collection/Recycling,REF00,Employee wellbeing/Other employee expenses,21,182,Team Prevent UK Ltd,148151,03/05/2018,10259061,TC,883064608,,883064608,PN,1244.9,19/04/2018
Housing Revenue Account,Unplanned Maintenance and Repair,UMR00,Employee wellbeing/Other employee expenses,21,367,Team Prevent UK Ltd,148151,03/05/2018,10259061,TC,883064608,,883064608,PN,1244.9,19/04/2018
Environment and Public Realm,Trade Waste Collection,WWC01,Employee wellbeing/Other employee expenses,21,91,Team Prevent UK Ltd,148151,03/05/2018,10259061,TC,883064608,,883064608,PN,1244.9,19/04/2018
Corporate Resources,Corporate Property Administration,CPA00,Recruitment Expenses,12,22,Team Prevent UK Ltd,148151,03/05/2018,10259062,TC,883064608,,883064608,PN,1842,19/04/2018
Communities and Homes,Apprenticeship Scheme,CSS25,Recruitment Expenses,12,22,Team Prevent UK Ltd,148151,03/05/2018,10259062,TC,883064608,,883064608,PN,1842,19/04/2018
Environment and Public Realm,Safety and Resilience,EPL00,Recruitment Expenses,12,22,Team Prevent UK Ltd,148151,03/05/2018,10259062,TC,883064608,,883064608,PN,1842,19/04/2018
Growth and Investment,Family Lifestyle Project,LSD11,Recruitment Expenses,12,66,Team Prevent UK Ltd,148151,03/05/2018,10259062,TC,883064608,,883064608,PN,1842,19/04/2018
Corporate Resources,Financial Services,RES10,Recruitment Expenses,12,44,Team Prevent UK Ltd,148151,03/05/2018,10259062,TC,883064608,,883064608,PN,1842,19/04/2018
Housing Revenue Account,Unplanned Maintenance and Repair,UMR00,Recruitment Expenses,12,22,Team Prevent UK Ltd,148151,03/05/2018,10259062,TC,883064608,,883064608,PN,1842,19/04/2018
Communities and Homes,Community Advice & Support Team,CAS00,Employee wellbeing/Other employee expenses,21,91,Team Prevent UK Ltd,148151,03/05/2018,10259062,TC,883064608,,883064608,PN,1842,19/04/2018
Communities and Homes,ITC & Support Services,CIS10,Employee wellbeing/Other employee expenses,21,91,Team Prevent UK Ltd,148151,03/05/2018,10259062,TC,883064608,,883064608,PN,1842,19/04/2018
Corporate Resources,Corporate Property Administration,CPA00,Employee wellbeing/Other employee expenses,21,36.4,Team Prevent UK Ltd,148151,03/05/2018,10259062,TC,883064608,,883064608,PN,1842,19/04/2018
Communities and Homes,Customer Support Services,CSS00,Employee wellbeing/Other employee expenses,21,91,Team Prevent UK Ltd,148151,03/05/2018,10259062,TC,883064608,,883064608,PN,1842,19/04/2018
Housing Revenue Account,Property Maintenance,MAN23,Employee wellbeing/Other employee expenses,21,54.6,Team Prevent UK Ltd,148151,03/05/2018,10259062,TC,883064608,,883064608,PN,1842,19/04/2018
Housing Revenue Account,Voids & Allocations Team,MAN24,Employee wellbeing/Other employee expenses,21,91,Team Prevent UK Ltd,148151,03/05/2018,10259062,TC,883064608,,883064608,PN,1842,19/04/2018
Environment and Public Realm,Grounds Maintenance,PKS20,Employee wellbeing/Other employee expenses,21,182,Team Prevent UK Ltd,148151,03/05/2018,10259062,TC,883064608,,883064608,PN,1842,19/04/2018
Growth and Investment,Planning General/Income,PLN00,Employee wellbeing/Other employee expenses,21,185,Team Prevent UK Ltd,148151,03/05/2018,10259062,TC,883064608,,883064608,PN,1842,19/04/2018
Environment and Public Realm,Domestic Waste Collection/Recycling,REF00,Employee wellbeing/Other employee expenses,21,273,Team Prevent UK Ltd,148151,03/05/2018,10259062,TC,883064608,,883064608,PN,1842,19/04/2018
Environment and Public Realm,Regulatory Services,REG00,Employee wellbeing/Other employee expenses,21,91,Team Prevent UK Ltd,148151,03/05/2018,10259062,TC,883064608,,883064608,PN,1842,19/04/2018
Environment and Public Realm,Street Cleansing General,STC00,Employee wellbeing/Other employee expenses,21,276,Team Prevent UK Ltd,148151,03/05/2018,10259062,TC,883064608,,883064608,PN,1842,19/04/2018
Housing Revenue Account,Unplanned Maintenance and Repair,UMR00,Employee wellbeing/Other employee expenses,21,182,Team Prevent UK Ltd,148151,03/05/2018,10259062,TC,883064608,,883064608,PN,1842,19/04/2018
Growth and Investment,The Benn Hall,BHL00,Recruitment Expenses,12,44,Team Prevent UK Ltd,148151,31/05/2018,10260100,TC,883064608,,883064608,PN,1108,23/05/2018
Communities and Homes,WTHEIP - Warwickshire Together Homelessness Early Intervention Project,HIP00,Recruitment Expenses,12,22,Team Prevent UK Ltd,148151,31/05/2018,10260100,TC,883064608,,883064608,PN,1108,23/05/2018
Environment and Public Realm,Grounds Maintenance,PKS20,Recruitment Expenses,12,44,Team Prevent UK Ltd,148151,31/05/2018,10260100,TC,883064608,,883064608,PN,1108,23/05/2018
Growth and Investment,Planning General/Income,PLN00,Recruitment Expenses,12,44,Team Prevent UK Ltd,148151,31/05/2018,10260100,TC,883064608,,883064608,PN,1108,23/05/2018
Environment and Public Realm,Domestic Waste Collection/Recycling,REF00,Recruitment Expenses,12,22,Team Prevent UK Ltd,148151,31/05/2018,10260100,TC,883064608,,883064608,PN,1108,23/05/2018
Corporate Resources,Financial Services,RES10,Recruitment Expenses,12,44,Team Prevent UK Ltd,148151,31/05/2018,10260100,TC,883064608,,883064608,PN,1108,23/05/2018
Housing Revenue Account,Sheltered Housing,AGP00,Employee wellbeing/Other employee expenses,21,91,Team Prevent UK Ltd,148151,31/05/2018,10260100,TC,883064608,,883064608,PN,1108,23/05/2018
Housing Revenue Account,Control Centre (HRA),CCE00,Employee wellbeing/Other employee expenses,21,91,Team Prevent UK Ltd,148151,31/05/2018,10260100,TC,883064608,,883064608,PN,1108,23/05/2018
Communities and Homes,Apprenticeship Scheme,CSS25,Employee wellbeing/Other employee expenses,21,91,Team Prevent UK Ltd,148151,31/05/2018,10260100,TC,883064608,,883064608,PN,1108,23/05/2018
Environment and Public Realm,Grounds Maintenance,PKS20,Employee wellbeing/Other employee expenses,21,185,Team Prevent UK Ltd,148151,31/05/2018,10260100,TC,883064608,,883064608,PN,1108,23/05/2018
Environment and Public Realm,Domestic Waste Collection/Recycling,REF00,Employee wellbeing/Other employee expenses,21,22,Team Prevent UK Ltd,148151,31/05/2018,10260100,TC,883064608,,883064608,PN,1108,23/05/2018
Corporate Resources,Financial Services,RES10,Employee wellbeing/Other employee expenses,21,113,Team Prevent UK Ltd,148151,31/05/2018,10260100,TC,883064608,,883064608,PN,1108,23/05/2018
Environment and Public Realm,Street Cleansing General,STC00,Employee wellbeing/Other employee expenses,21,182,Team Prevent UK Ltd,148151,31/05/2018,10260100,TC,883064608,,883064608,PN,1108,23/05/2018
Housing Revenue Account,Unplanned Maintenance and Repair,UMR00,Employee wellbeing/Other employee expenses,21,113,Team Prevent UK Ltd,148151,31/05/2018,10260100,TC,883064608,,883064608,PN,1108,23/05/2018
Housing Revenue Account,Supervision and Management General,MAN00,Other Miscellaneous Expenses,444,3028,Walton & Taylor,148198,03/05/2018,10259003,NT,,,,PN,3028,18/04/2018
Housing Revenue Account,Supervision and Management General,MAN00,External Contractor & Operator,742,1030,Reactec Ltd,148291,31/05/2018,10260035,TC,804120877,221428,804120877,PI,1236,22/05/2018
Housing Revenue Account,Supervision and Management General,MAN00,External Contractor & Operator,742,2575,Reactec Ltd,148291,31/05/2018,10260036,TC,804120877,221428,804120877,PI,3090,22/05/2018
Environment and Public Realm,Parks,PKS00,R&M External Contractors,100,1240,J P Landscapes & Construction Ltd,148502,17/05/2018,10259617,CS,844237818,4840565,844 2378 18,PI,1488,09/05/2018
Outside portfolio expenditure,Balance Sheet,BS,Car Loan Scheme,9261,5490,Mawsley Motor Company Ltd,148771,10/05/2018,10259606,NT,993465275,,993465275,PN,5490,09/05/2018
Housing Revenue Account,Gas Heating Systems,UMR01,R&M External Contractors,100,28502.08,Robert Heath Heating Ltd,148858,24/05/2018,10259650,CS,927490989,1773699,927 4909 89,PN,34202.5,11/05/2018
Housing Revenue Account,Unplanned Maintenance and Repair,UMR00,R&M External Contractors,100,1,Robert Heath Heating Ltd,148858,24/05/2018,10259911,CS,927490989,1773699,927 4909 89,PN,5425.03,17/05/2018
Housing Revenue Account,Gas Heating Systems,UMR01,R&M External Contractors,100,2538.74,Robert Heath Heating Ltd,148858,24/05/2018,10259911,CS,927490989,1773699,927 4909 89,PN,5425.03,17/05/2018
Housing Revenue Account,Repairs and Maintenance - Void works,UMR09,R&M External Contractors,100,1764.52,Robert Heath Heating Ltd,148858,24/05/2018,10259911,CS,927490989,1773699,927 4909 89,PN,5425.03,17/05/2018
Housing Revenue Account,Repairs and Maintenance - rechargeable works,UMR20,R&M External Contractors,100,216.6,Robert Heath Heating Ltd,148858,24/05/2018,10259911,CS,927490989,1773699,927 4909 89,PN,5425.03,17/05/2018
Environment and Public Realm,Parks,PKS00,External Contractor & Operator,742,2095,F M Deery Sports Ground Maintenance,148915,10/05/2018,10259049,TC,812991615,,812991615,PI,2394,19/04/2018
Communities and Homes,CAST - Private Sector Leasing,CAS03,Building cleaning,170,1224.73,Solutions Services,148937,03/05/2018,10259414,TC,831753431,,831753431,PN,1469.67,02/05/2018
Corporate Resources,Human Resources Centralised Services,RES31,Training fees,11,860,Up Front Training & Coaching,148954,10/05/2018,10259424,TC,,,,PN,860,03/05/2018
Housing Revenue Account,Fire Alarm maintenance,UMR13,R&M External Contractors,100,1104.76,Central Housing Investment Consortium Ltd,149019,24/05/2018,10259107,TC,994340200,7266506,994340200,PN,1325.71,23/04/2018
Environment and Public Realm,Parks,PKS00,Maintenance of Equipment,301,687.5,AHS Ltd,149255,03/05/2018,10258603,TC,621583942,2803955,621583942,PI,825,09/04/2018
Environment and Public Realm,Garage,WVR00,Materials,303,737.52,Tom Tom International BV,149311,31/05/2018,10259857,TC,273433560,,273433560,PN,885.02,16/05/2018
Environment and Public Realm,Private Hire Vehicles,HKC01,External Contractor & Operator,742,436.65,VIP-SYSTEM Ltd,149351,24/05/2018,10259873,TC,383040374,SC132864,383040374,PI,523.98,16/05/2018
Housing Revenue Account,Miscellaneous Unplanned Maintenance and Repair,UMR17,R&M External Contractors,100,404.33,Close Circuit Security Services Ltd,149426,03/05/2018,10259298,TC,695360895,3543850,695360895,PN,2173.36,30/04/2018
Housing Revenue Account,Control Centre CCTV,CCE01,Maintenance of Equipment,301,1406.8,Close Circuit Security Services Ltd,149426,03/05/2018,10259298,TC,695360895,3543850,695360895,PN,2173.36,30/04/2018
Housing Revenue Account,Control Centre CCTV,CCE01,Maintenance of Equipment,301,2666.66,Close Circuit Security Services Ltd,149426,10/05/2018,10259440,TC,695360895,3543850,695360895,PN,3199.99,03/05/2018
Corporate Resources,Human Resources Centralised Services,RES31,Training fees,11,1829,Art of Brilliance Ltd,149617,03/05/2018,10259384,TC,864661490,6538806,864661490,PN,2194.8,02/05/2018
Environment and Public Realm,Crematorium,CRM00,Organist Fees,414,1398,Tracey Daulman,149686,31/05/2018,10260238,TC,,,,PN,1398,29/05/2018
Corporate Resources,Human Resources Centralised Services,RES31,Training fees,11,450,Visionary Consultancy & Training Ltd,149778,24/05/2018,10260081,TC,926690495,8016485,926690495,PN,540,23/05/2018
Capital Housing Revenue Account,Heating Upgrades,HIM01,Capital Contract Payments,5000,7260.88,PTS Rugby,149845,03/05/2018,10259252,TC,408556737,,408556737,PN,8713.06,27/04/2018
Capital Housing Revenue Account,Heating Upgrades,HIM01,Capital Contract Payments,5000,1071.12,PTS Rugby,149845,03/05/2018,10259253,TC,408556737,,408556737,PN,1285.34,27/04/2018
Capital Housing Revenue Account,Heating Upgrades,HIM01,Capital Contract Payments,5000,851.78,PTS Rugby,149845,03/05/2018,10259254,TC,408556737,,408556737,PN,1022.14,27/04/2018
Capital Housing Revenue Account,Heating Upgrades,HIM01,Capital Contract Payments,5000,3058.2,PTS Rugby,149845,03/05/2018,10259255,TC,408556737,,408556737,PN,3669.84,27/04/2018
Capital Housing Revenue Account,Heating Upgrades,HIM01,Capital Contract Payments,5000,1872.43,PTS Rugby,149845,24/05/2018,10259901,TC,408556737,,408556737,PN,2246.92,17/05/2018
Capital Housing Revenue Account,Heating Upgrades,HIM01,Capital Contract Payments,5000,5097,PTS Rugby,149845,24/05/2018,10259902,TC,408556737,,408556737,PN,6116.4,17/05/2018
Capital Housing Revenue Account,Heating Upgrades,HIM01,Capital Contract Payments,5000,5737.25,PTS Rugby,149845,24/05/2018,10259903,TC,408556737,,408556737,PN,6884.7,17/05/2018
Corporate Resources,Corporate Property R&M,CPA01,R&M External Contractors,100,974.4,APPS UK LTD,149914,17/05/2018,10259708,TC,904400764,6174205,904400764,PN,1169.28,11/05/2018
Environment and Public Realm,Parks,PKS00,External Contractor & Operator,742,2400,Alive Oak Design & Restoration,149976,03/05/2018,10259093,TC,,,,PI,2400,23/04/2018
Corporate Resources,General Financial Services,GFS00,External Contractor & Operator,742,3000,Link Treasury Services Ltd,150056,24/05/2018,10259308,TC,2652033,,2652033,PI,3600,30/04/2018
Executive Director Office,Civic Responsibilities,CIV00,Other Miscellaneous Expenses,444,1030.02,J W Plant & Co Ltd,150078,24/05/2018,10259980,TC,169154837,246370,169154837,PI,1236.02,18/05/2018
Environment and Public Realm,Street Cleansing General,STC00,Vehicle Repair and Maintenance,200,3324.06,Tennant UK Cleaning Solutions Ltd,150101,17/05/2018,10259651,TC,,,,PN,3988.87,11/05/2018
Growth and Investment,Economic Development General,ECD00,Development Activities,450,3068,G L Hearn Ltd,150112,10/05/2018,10259425,TC,735927209,3798877,735927209,PN,3681.6,03/05/2018
Communities and Homes,Central Business Support Services,CSS15,Stationery Supplies,350,1060,Bank Security Printing,150128,03/05/2018,10259417,TC,193604302,,193604302,PN,1272,02/05/2018
Corporate Resources,Corporate Property R&M,CPA01,R&M External Contractors,100,3015.06,DACT Fire & Security Ltd,150187,31/05/2018,10260159,TC,211401577,8122194,211401577,PI,3618.07,24/05/2018
Communities and Homes,ITC & Support Services,CIS10,Software/Equipment Licences,379,818.56,Insight UK Ltd,150801,31/05/2018,10260224,TC,746075129,2579852,746075129,PI,982.27,29/05/2018
Housing Revenue Account,Lift maintenance,UMR14,R&M External Contractors,100,2655,Lift & Engineering Services Ltd,150984,24/05/2018,10260011,TC,377355519,1913516,377355519,PN,3186,21/05/2018
Corporate Resources,Corporate Property R&M,CPA01,R&M External Contractors,100,1060,Lindon Environmental Air Services Ltd,150989,31/05/2018,10260151,TC,377811032,1687235,377811032,PN,1272,24/05/2018
Environment and Public Realm,Grounds Maintenance,PKS20,External Contractor & Operator,742,5900,Glendale Grounds Management Ltd,151025,10/05/2018,10259407,TC,203324952,,203324952,PN,7080,02/05/2018
Growth and Investment,Economic Development General,ECD00,Consultancy Costs,740,3622.97,Dixon Searle Partnership Ltd,151060,10/05/2018,10259334,TC,241819312,10149678,241819312,PN,4347.56,02/05/2018
Growth and Investment,Economic Development General,ECD00,Consultancy Costs,740,750,Dixon Searle Partnership Ltd,151060,10/05/2018,10259335,TC,241819312,10149678,241819312,PN,900,02/05/2018
Growth and Investment,Economic Development General,ECD00,Consultancy Costs,740,2549.04,Dixon Searle Partnership Ltd,151060,10/05/2018,10259413,TC,241819312,10149678,241819312,PN,3058.85,02/05/2018
Housing Revenue Account,Unplanned Maintenance and Repair,UMR00,Materials,303,1202,DCTUK T/A Discount Carpet Tiles,151067,17/05/2018,10259764,TC,903973512,6130667,903973512,PN,1442.4,15/05/2018
Housing Revenue Account,Control Centre (HRA),CCE00,New Equipment,300,1675,Doro Care,151085,03/05/2018,10259260,TC,150483525,7766454,150483525,PI,1675,27/04/2018
Communities and Homes,CAST - Private Sector Leasing,CAS03,Private Sector Leasing Scheme Properties,148,4500,Personal Redacted Data,151176,31/05/2018,10260276,TC,,,,PN,4500,31/05/2018
Communities and Homes,Maintenance of Customer Services Systems,CIS21,Software Maintenance,374,1500,Sports Booker Ltd,151186,03/05/2018,10259248,TC,819067808,7764026,819067808,PN,1800,27/04/2018
Housing Revenue Account,Laundry equipment maintenance,UMR15,R&M External Contractors,100,7579,JLA Ltd,151207,10/05/2018,10259528,TC,566894869,1094178,566894869,PN,9094.8,08/05/2018
Environment and Public Realm,Town Centre Improvements,TWN00,Consultation,378,13775,Glancy Nicholls Architects Ltd,151225,10/05/2018,10257140,TC,846478287,5141809,846478287,PI,16530,27/02/2018
Growth and Investment,Art Gallery and Museum,AGM00,Childcare vouchers admin fee,7,9.72,Busy Bees Benefits Ltd,151230,10/05/2018,10259443,NT,,6758298,,PN,3834.91,03/05/2018
Corporate Resources,Council Tax and NNDR Collection,CTX01,Childcare vouchers admin fee,7,20.24,Busy Bees Benefits Ltd,151230,10/05/2018,10259443,NT,,6758298,,PN,3834.91,03/05/2018
Corporate Resources,Legal Services,DEM20,Childcare vouchers admin fee,7,9.09,Busy Bees Benefits Ltd,151230,10/05/2018,10259443,NT,,6758298,,PN,3834.91,03/05/2018
Growth and Investment,Economic Development General,ECD00,Childcare vouchers admin fee,7,0.8,Busy Bees Benefits Ltd,151230,10/05/2018,10259443,NT,,6758298,,PN,3834.91,03/05/2018
Communities and Homes,WTHEIP - Warwickshire Together Homelessness Early Intervention Project,HIP00,Childcare vouchers admin fee,7,9.72,Busy Bees Benefits Ltd,151230,10/05/2018,10259443,NT,,6758298,,PN,3834.91,03/05/2018
Environment and Public Realm,Licencing,LIC00,Childcare vouchers admin fee,7,3.2,Busy Bees Benefits Ltd,151230,10/05/2018,10259443,NT,,6758298,,PN,3834.91,03/05/2018
Growth and Investment,Sports and Recreation,LSD03,Childcare vouchers admin fee,7,8.4,Busy Bees Benefits Ltd,151230,10/05/2018,10259443,NT,,6758298,,PN,3834.91,03/05/2018
Housing Revenue Account,Estate Management,MAN22,Childcare vouchers admin fee,7,9.72,Busy Bees Benefits Ltd,151230,10/05/2018,10259443,NT,,6758298,,PN,3834.91,03/05/2018
Housing Revenue Account,Voids & Allocations Team,MAN24,Childcare vouchers admin fee,7,4.76,Busy Bees Benefits Ltd,151230,10/05/2018,10259443,NT,,6758298,,PN,3834.91,03/05/2018
Growth and Investment,Planning General/Income,PLN00,Childcare vouchers admin fee,7,13.12,Busy Bees Benefits Ltd,151230,10/05/2018,10259443,NT,,6758298,,PN,3834.91,03/05/2018
Environment and Public Realm,Domestic Waste Collection/Recycling,REF00,Childcare vouchers admin fee,7,1,Busy Bees Benefits Ltd,151230,10/05/2018,10259443,NT,,6758298,,PN,3834.91,03/05/2018
Environment and Public Realm,Regulatory Services,REG00,Childcare vouchers admin fee,7,9.72,Busy Bees Benefits Ltd,151230,10/05/2018,10259443,NT,,6758298,,PN,3834.91,03/05/2018
Corporate Resources,Financial Services,RES10,Childcare vouchers admin fee,7,21.44,Busy Bees Benefits Ltd,151230,10/05/2018,10259443,NT,,6758298,,PN,3834.91,03/05/2018
Corporate Resources,Human Resources,RES30,Childcare vouchers admin fee,7,1.2,Busy Bees Benefits Ltd,151230,10/05/2018,10259443,NT,,6758298,,PN,3834.91,03/05/2018
Housing Revenue Account,Unplanned Maintenance and Repair,UMR00,Childcare vouchers admin fee,7,9.72,Busy Bees Benefits Ltd,151230,10/05/2018,10259443,NT,,6758298,,PN,3834.91,03/05/2018
Growth and Investment,Visitor Centre,VSC00,Childcare vouchers admin fee,7,4.8,Busy Bees Benefits Ltd,151230,10/05/2018,10259443,NT,,6758298,,PN,3834.91,03/05/2018
Environment and Public Realm,Trade Waste Collection,WWC01,Childcare vouchers admin fee,7,9.72,Busy Bees Benefits Ltd,151230,10/05/2018,10259443,NT,,6758298,,PN,3834.91,03/05/2018
Communities and Homes,ITC & Support Services,CIS10,Consultancy Costs,740,3450,Firmstep,151293,10/05/2018,10259467,TC,,,,PI,4140,03/05/2018
Environment and Public Realm,Crime and Disorder Activities,CAD00,Development Activities,450,450,Buddi Ltd,151339,17/05/2018,10259641,TC,867696451,5308826,867696451,PI,540,10/05/2018
Environment and Public Realm,Violence,CAD01,Development Activities,450,20000,Refuge,151459,17/05/2018,10259055,TC,,,,PI,20000,19/04/2018
Growth and Investment,Economic Development General,ECD00,Borough Local Plan,452,850,Outset Production Services Ltd,151499,03/05/2018,10259125,TC,,,,PN,850,23/04/2018
Communities and Homes,CAST - Private Sector Leasing,CAS03,Private Sector Leasing Scheme Properties,148,4950,SV Property Ltd,151504,17/05/2018,10259714,TC,,,,PN,4950,11/05/2018
Growth and Investment,Visitor Centre,VSC00,Purchases for Resale,305,718.75,Ellis Rugby,151507,24/05/2018,10259965,TC,202823446,7946790,202823446,PI,862.5,18/05/2018
Communities and Homes,Broadband & internet,TEL01,Telephone Expenses,371,666.66,HighSpeed Office Ltd,151543,17/05/2018,10259570,TC,766384980,3935705,766384980,PN,799.99,09/05/2018
Growth and Investment,Planning General/Income,PLN00,Consultancy Costs,740,4084.8,Nigel Reeves Planning & Urban Design Ltd,151614,10/05/2018,10259484,TC,,,,PN,4084.8,04/05/2018
Growth and Investment,The Benn Hall,BHL00,Purchases for Resale,305,585.16,Drays Wholesale Limited,151618,03/05/2018,10259315,TC,128586875,,128586875,PN,702.19,02/05/2018
Growth and Investment,The Benn Hall,BHL00,Purchases for Resale,305,624.54,Drays Wholesale Limited,151618,17/05/2018,10259761,TC,128586875,,128586875,PN,749.45,14/05/2018
Communities and Homes,ITC & Support Services,CIS10,Software/Equipment Licences,379,2856,Specops Software Ltd,151632,17/05/2018,10259792,TC,982661780,7040982,982661780,PN,3427.2,15/05/2018
Communities and Homes,ITC & Support Services,CIS10,Hardware Maintenance,376,5697.6,COOLSPIRiT Ltd,151678,31/05/2018,10260164,TC,715995201,3600170,715995201,PI,6837.12,24/05/2018
Environment and Public Realm,Trade Waste Collection,WWC01,Materials,303,4698.8,Storm Environmental Ltd,151691,24/05/2018,10259845,TC,,,,PN,11517.12,16/05/2018
Capital Environment and Public Realm,Purchase of Waste Bins,PWB00,Capital Contract Payments,5000,4898.8,Storm Environmental Ltd,151691,24/05/2018,10259845,TC,,,,PN,11517.12,16/05/2018
Environment and Public Realm,Garage,WVR00,Materials,303,18408.96,Tate Fuel Oils Ltd,151733,17/05/2018,10259632,TC,301189982,1301975,301189982,PI,22090.75,09/05/2018
Environment and Public Realm,Garage,WVR00,Materials,303,17397.12,Tate Fuel Oils Ltd,151733,17/05/2018,10259637,TC,301189982,1301975,301189982,PI,20876.54,09/05/2018
Capital Housing Revenue Account,Disabled Adaptations,HCR01,Capital Contract Payments,5000,2493.25,UK Gas Services Ltd,151764,03/05/2018,10259296,CS,974960175,2976617,974960175,PN,12069.9,30/04/2018
Capital Housing Revenue Account,Heating Upgrades,HIM01,Capital Contract Payments,5000,4463,UK Gas Services Ltd,151764,03/05/2018,10259296,CS,974960175,2976617,974960175,PN,12069.9,30/04/2018
Capital Housing Revenue Account,Bathroom Modifications,HIS01,Capital Contract Payments,5000,3102,UK Gas Services Ltd,151764,03/05/2018,10259296,CS,974960175,2976617,974960175,PN,12069.9,30/04/2018
Housing Revenue Account,Miscellaneous Unplanned Maintenance and Repair,UMR17,R&M External Contractors,100,232,UK Gas Services Ltd,151764,24/05/2018,10259646,CS,974960175,2976617,974960175,PN,9006.5,11/05/2018
Capital Housing Revenue Account,Disabled Adaptations,HCR01,Capital Contract Payments,5000,232,UK Gas Services Ltd,151764,24/05/2018,10259646,CS,974960175,2976617,974960175,PN,9006.5,11/05/2018
Capital Housing Revenue Account,Heating Upgrades,HIM01,Capital Contract Payments,5000,7041.42,UK Gas Services Ltd,151764,24/05/2018,10259646,CS,974960175,2976617,974960175,PN,9006.5,11/05/2018
Housing Revenue Account,Gas Heating Systems,UMR01,R&M External Contractors,100,80,UK Gas Services Ltd,151764,24/05/2018,10259906,CS,974960175,2976617,974960175,PN,15968.83,17/05/2018
Capital Housing Revenue Account,Disabled Adaptations,HCR01,Capital Contract Payments,5000,311,UK Gas Services Ltd,151764,24/05/2018,10259906,CS,974960175,2976617,974960175,PN,15968.83,17/05/2018
Capital Housing Revenue Account,Heating Upgrades,HIM01,Capital Contract Payments,5000,12916.36,UK Gas Services Ltd,151764,24/05/2018,10259906,CS,974960175,2976617,974960175,PN,15968.83,17/05/2018
Communities and Homes,CAST - Private Sector Leasing,CAS03,Private Sector Leasing Scheme Properties,148,2250.03,Personal Redacted Data,151765,24/05/2018,10259897,TC,,,,PN,2250.03,17/05/2018
Growth and Investment,Economic Development General,ECD00,Borough Local Plan,452,1005.7,C P Solutions,151770,03/05/2018,10259314,TC,,,,PN,1005.7,02/05/2018
Growth and Investment,Economic Development General,ECD00,Borough Local Plan,452,754,C P Solutions,151770,17/05/2018,10259676,TC,,,,PN,754,11/05/2018
Growth and Investment,Economic Development General,ECD00,Borough Local Plan,452,2445.6,C P Solutions,151770,31/05/2018,10259993,TC,,,,PN,2445.6,21/05/2018
Housing Revenue Account,Control Centre (HRA),CCE00,New Equipment,300,1188,Tunstall Healthcare,151791,17/05/2018,10259738,TC,182879709,1332249,182879709,PI,1425.6,11/05/2018
Housing Revenue Account,Control Centre (HRA),CCE00,New Equipment,300,1980,Tunstall Healthcare,151791,24/05/2018,10259979,TC,182879709,1332249,182879709,PI,2376,18/05/2018
Growth and Investment,Art Gallery and Museum,AGM00,Building cleaning,170,2343.75,Kingdom Service Group,151795,03/05/2018,10258536,CS,582329526,2795197,582329526,PN,37045.31,05/04/2018
Housing Revenue Account,Sheltered Housing,AGP00,Building cleaning,170,13090.67,Kingdom Service Group,151795,03/05/2018,10258536,CS,582329526,2795197,582329526,PN,37045.31,05/04/2018
Growth and Investment,The Benn Hall,BHL00,Building cleaning,170,1406.25,Kingdom Service Group,151795,03/05/2018,10258536,CS,582329526,2795197,582329526,PN,37045.31,05/04/2018
Communities and Homes,Community Advice & Support Team,CAS00,Building cleaning,170,124.29,Kingdom Service Group,151795,03/05/2018,10258536,CS,582329526,2795197,582329526,PN,37045.31,05/04/2018
Environment and Public Realm,Car Parks General,CPK01,Building cleaning,170,398,Kingdom Service Group,151795,03/05/2018,10258536,CS,582329526,2795197,582329526,PN,37045.31,05/04/2018
Environment and Public Realm,Crematorium,CRM00,Building cleaning,170,826,Kingdom Service Group,151795,03/05/2018,10258536,CS,582329526,2795197,582329526,PN,37045.31,05/04/2018
Housing Revenue Account,Estate Management,MAN22,Building cleaning,170,2819.57,Kingdom Service Group,151795,03/05/2018,10258536,CS,582329526,2795197,582329526,PN,37045.31,05/04/2018
Housing Revenue Account,Multi-Storey Flats,MSF00,Building cleaning,170,1584.56,Kingdom Service Group,151795,03/05/2018,10258536,CS,582329526,2795197,582329526,PN,37045.31,05/04/2018
Corporate Resources,Town Hall,OFF00,Building cleaning,170,4634.67,Kingdom Service Group,151795,03/05/2018,10258536,CS,582329526,2795197,582329526,PN,37045.31,05/04/2018
Environment and Public Realm,Parks,PKS00,Building cleaning,170,220.5,Kingdom Service Group,151795,03/05/2018,10258536,CS,582329526,2795197,582329526,PN,37045.31,05/04/2018
Housing Revenue Account,Unplanned Maintenance and Repair,UMR00,Building cleaning,170,486,Kingdom Service Group,151795,03/05/2018,10258536,CS,582329526,2795197,582329526,PN,37045.31,05/04/2018
Environment and Public Realm,WSU Depot,WDP00,Building cleaning,170,436.83,Kingdom Service Group,151795,03/05/2018,10258536,CS,582329526,2795197,582329526,PN,37045.31,05/04/2018
Environment and Public Realm,Town Centre Public Conveniences,PCS00,Toilet Cleaning,173,2500,Kingdom Service Group,151795,03/05/2018,10258536,CS,582329526,2795197,582329526,PN,37045.31,05/04/2018
Growth and Investment,Art Gallery and Museum,AGM00,Building cleaning,170,2343.75,Kingdom Service Group,151795,24/05/2018,10259767,CS,582329526,2795197,582329526,PN,37045.31,15/05/2018
Housing Revenue Account,Sheltered Housing,AGP00,Building cleaning,170,13090.67,Kingdom Service Group,151795,24/05/2018,10259767,CS,582329526,2795197,582329526,PN,37045.31,15/05/2018
Growth and Investment,The Benn Hall,BHL00,Building cleaning,170,1406.25,Kingdom Service Group,151795,24/05/2018,10259767,CS,582329526,2795197,582329526,PN,37045.31,15/05/2018
Communities and Homes,Community Advice & Support Team,CAS00,Building cleaning,170,124.29,Kingdom Service Group,151795,24/05/2018,10259767,CS,582329526,2795197,582329526,PN,37045.31,15/05/2018
Environment and Public Realm,Car Parks General,CPK01,Building cleaning,170,398,Kingdom Service Group,151795,24/05/2018,10259767,CS,582329526,2795197,582329526,PN,37045.31,15/05/2018
Environment and Public Realm,Crematorium,CRM00,Building cleaning,170,826,Kingdom Service Group,151795,24/05/2018,10259767,CS,582329526,2795197,582329526,PN,37045.31,15/05/2018
Housing Revenue Account,Estate Management,MAN22,Building cleaning,170,2819.57,Kingdom Service Group,151795,24/05/2018,10259767,CS,582329526,2795197,582329526,PN,37045.31,15/05/2018
Housing Revenue Account,Multi-Storey Flats,MSF00,Building cleaning,170,1584.56,Kingdom Service Group,151795,24/05/2018,10259767,CS,582329526,2795197,582329526,PN,37045.31,15/05/2018
Corporate Resources,Town Hall,OFF00,Building cleaning,170,4634.67,Kingdom Service Group,151795,24/05/2018,10259767,CS,582329526,2795197,582329526,PN,37045.31,15/05/2018
Environment and Public Realm,Parks,PKS00,Building cleaning,170,220.5,Kingdom Service Group,151795,24/05/2018,10259767,CS,582329526,2795197,582329526,PN,37045.31,15/05/2018
Housing Revenue Account,Unplanned Maintenance and Repair,UMR00,Building cleaning,170,486,Kingdom Service Group,151795,24/05/2018,10259767,CS,582329526,2795197,582329526,PN,37045.31,15/05/2018
Environment and Public Realm,WSU Depot,WDP00,Building cleaning,170,436.84,Kingdom Service Group,151795,24/05/2018,10259767,CS,582329526,2795197,582329526,PN,37045.31,15/05/2018
Environment and Public Realm,Town Centre Public Conveniences,PCS00,Toilet Cleaning,173,2500,Kingdom Service Group,151795,24/05/2018,10259767,CS,582329526,2795197,582329526,PN,37045.31,15/05/2018
Housing Revenue Account,Repairs and Maintenance - Void works,UMR09,R&M External Contractors,100,1125,Kingdom Service Group,151795,24/05/2018,10259905,CS,582329526,2795197,582329526,PN,1350,17/05/2018
Environment and Public Realm,Domestic Waste Collection/Recycling,REF00,Vehicle Repair and Maintenance,200,3600,Access Engineering Supplies Ltd,151808,03/05/2018,10259282,TC,921692520,6406682,921692520,PN,5400,30/04/2018
Environment and Public Realm,Trade Waste Collection,WWC01,Vehicle Repair and Maintenance,200,900,Access Engineering Supplies Ltd,151808,03/05/2018,10259282,TC,921692520,6406682,921692520,PN,5400,30/04/2018
Growth and Investment,Hall of Fame,TRY00,Publicity & Marketing,377,1538,JCDecaux UK Ltd - Rail,151817,10/05/2018,10259209,TC,539090043,1679670,539090043,PI,1845.6,25/04/2018
Growth and Investment,Hall of Fame,TRY00,Publicity & Marketing,377,1538,JCDecaux UK Ltd - Rail,151817,24/05/2018,10260039,TC,539090043,1679670,539090043,PI,1845.6,22/05/2018
Corporate Resources,Human Resources Centralised Services,RES31,Recruitment Expenses,12,1575,Growth Hub Business Solutions,151836,03/05/2018,10259208,TC,66928359,10369498,66928359,PI,1890,25/04/2018
Corporate Resources,Human Resources Centralised Services,RES31,Recruitment Expenses,12,2275,Growth Hub Business Solutions,151836,03/05/2018,10259373,TC,66928359,10369498,66928359,PI,2730,02/05/2018
Corporate Resources,Human Resources Centralised Services,RES31,Recruitment Expenses,12,2625,Growth Hub Business Solutions,151836,24/05/2018,10259876,TC,66928359,10369498,66928359,PI,3150,16/05/2018
Corporate Resources,Human Resources Centralised Services,RES31,Recruitment Expenses,12,675,Growth Hub Business Solutions,151836,24/05/2018,10259982,TC,66928359,10369498,66928359,PI,810,18/05/2018
Corporate Resources,Human Resources Centralised Services,RES31,Recruitment Expenses,12,1975,Growth Hub Business Solutions,151836,24/05/2018,10259983,TC,66928359,10369498,66928359,PI,2370,18/05/2018
Communities and Homes,ITC & Support Services,CIS10,New Equipment,300,894.09,PCM Technology Solutions Ltd,151837,03/05/2018,10259212,TC,264198089,103216566,264198089,PI,1072.91,25/04/2018
Communities and Homes,ITC & Support Services,CIS10,New Equipment,300,1249.96,PCM Technology Solutions Ltd,151837,17/05/2018,10259506,TC,264198089,103216566,264198089,PI,1499.95,04/05/2018
Capital Communities and Homes,ICT Renewal Programme,CMP00,IT Capital Expenditure,5025,2531.1,PCM Technology Solutions Ltd,151837,17/05/2018,10259789,TC,264198089,103216566,264198089,PI,3037.32,15/05/2018
Capital Communities and Homes,ICT Renewal Programme,CMP00,IT Capital Expenditure,5025,11628.28,PCM Technology Solutions Ltd,151837,17/05/2018,10259830,TC,264198089,103216566,264198089,PI,13953.94,15/05/2018
Communities and Homes,ITC & Support Services,CIS10,New Equipment,300,693.16,PCM Technology Solutions Ltd,151837,31/05/2018,10260162,TC,264198089,103216566,264198089,PI,831.79,24/05/2018
Housing Revenue Account,Unplanned Maintenance and Repair,UMR00,Training fees,11,500,Arundle Mediation Solutions Ltd,151839,17/05/2018,10259402,TC,,,,PN,600,02/05/2018
Growth and Investment,Economic Development General,ECD00,Borough Local Plan,452,6440.87,Troy Hayes Planning Ltd,151845,24/05/2018,10259782,TC,163258801,8533500,163258801,PI,7729.05,15/05/2018
Capital Corporate Resources,Cattle Market Site,CMS00,Capital Contract Payments,5000,2617,Cushman  & Wakefield Debenham Tie Leung,151863,31/05/2018,10260115,TC,466425139,2757768,466425139,PN,3140.4,24/05/2018
Growth and Investment,The Benn Hall,BHL00,Events Tickets - Zero Rated,1405,3842.75,Red Ents Ltd,151900,24/05/2018,10259569,TC,216427815,9587390,216427815,PN,4611.3,09/05/2018
Growth and Investment,The Benn Hall,BHL00,Events Tickets - Zero Rated,1405,1451.92,Red Ents Ltd,151900,24/05/2018,10259571,TC,216427815,9587390,216427815,PN,1742.3,09/05/2018
Capital Housing Revenue Account,Housing Management System,HCE08,IT Capital Expenditure,5025,2520,Gravitas Recruitment Group,151921,10/05/2018,10259326,TC,974844372,6959984,974844372,PN,3024,02/05/2018
Capital Housing Revenue Account,Housing Management System,HCE08,IT Capital Expenditure,5025,3150,Gravitas Recruitment Group,151921,10/05/2018,10259408,TC,974844372,6959984,974844372,PN,3780,02/05/2018
Capital Housing Revenue Account,Housing Management System,HCE08,IT Capital Expenditure,5025,2205,Gravitas Recruitment Group,151921,10/05/2018,10259479,TC,974844372,6959984,974844372,PN,2646,04/05/2018
Capital Housing Revenue Account,Housing Management System,HCE08,IT Capital Expenditure,5025,2520,Gravitas Recruitment Group,151921,17/05/2018,10259696,TC,974844372,6959984,974844372,PN,3024,11/05/2018
Capital Housing Revenue Account,Housing Management System,HCE08,IT Capital Expenditure,5025,1890,Gravitas Recruitment Group,151921,17/05/2018,10259847,TC,974844372,6959984,974844372,PN,2268,16/05/2018
Communities and Homes,CAST - Private Sector Leasing,CAS03,Private Sector Leasing Scheme Properties,148,5250,Dreambuilder Financial Ltd,151961,03/05/2018,10259288,NT,,,,PN,5250,30/04/2018
Environment and Public Realm,Grounds Maintenance,PKS20,New Equipment,300,1890,Air Plants Dust Extraction Ltd,151963,03/05/2018,10258911,TC,114405121,3292598,114405121,PN,2268,16/04/2018
Environment and Public Realm,Household Green Waste Collections,REF06,Vehicle Repair and Maintenance,200,961.13,Mitchell Diesel Ltd,151964,03/05/2018,10259161,TC,118289160,1179564,118289160,PN,1153.36,24/04/2018
Corporate Resources,Human Resources Centralised Services,RES31,Training fees,11,895,Agility Risk & Compliance Ltd,151976,31/05/2018,10259623,TC,566580411,2518452,566580411,PI,1074,09/05/2018
Communities and Homes,CAST - Private Sector Leasing,CAS03,Private Sector Leasing Scheme Properties,148,1800,Personal Redacted Data,151978,03/05/2018,10259251,NT,,,,PN,1800,27/04/2018
Communities and Homes,CAST - Private Sector Leasing,CAS03,Private Sector Leasing Scheme Properties,148,1650,Personal Redacted Data,151978,24/05/2018,10259978,NT,,,,PN,1650,18/05/2018
Housing Revenue Account,Multi-Storey Flats,MSF00,Other Miscellaneous Expenses,444,3500,Propitas LLP,152023,03/05/2018,10259379,TC,935380416,OC331571,935380416,PI,4200,02/05/2018
Communities and Homes,ITC & Support Services,CIS10,Consultancy Costs,740,2900,Astun Technology Ltd,152049,10/05/2018,10259422,TC,864201149,5410695,864201149,PI,3480,02/05/2018
Communities and Homes,ITC & Support Services,CIS10,Consultancy Costs,740,474.97,Astun Technology Ltd,152049,24/05/2018,10260051,TC,864201149,5410695,864201149,PN,569.96,22/05/2018
Growth and Investment,AGM Education,AGM03,Other Miscellaneous Expenses,444,670,Higher Beings,152061,17/05/2018,10259695,NT,,,,PN,670,11/05/2018
Corporate Resources,Corporate Property R&M,CPA01,R&M External Contractors,100,550,Building Investigation and Testing Services,152063,10/05/2018,10259438,TC,793845965,4456510,793845965,PN,660,03/05/2018
Housing Revenue Account,Sheltered Housing Team,MAN21,Other Miscellaneous Expenses,444,2650,MK Property Services,152064,10/05/2018,10259310,CS,,,,PN,2650,01/05/2018
Environment and Public Realm,Street Furniture,LEI22,Capital Contract Payments,5000,2289.57,Jati Ltd T/A Lindsey Teak,152074,17/05/2018,10259636,TC,495462803,4585261,495462803,PI,2747.49,09/05/2018
Communities and Homes,Nightly Paid Self Contained Accommodation,CAS07,Nightly Self Contained Accommodation,149,1705,Centennial Property T/A The Housing Network,152075,03/05/2018,10259244,TC,,,,PN,1705,27/04/2018
Communities and Homes,Nightly Paid Self Contained Accommodation,CAS07,Nightly Self Contained Accommodation,149,1650,Centennial Property T/A The Housing Network,152075,10/05/2018,10259487,TC,,,,PN,1650,04/05/2018
Communities and Homes,Community Advice & Support Team,CAS00,Agency Staff,3,2217.78,Meritec limited,152076,03/05/2018,10259381,TC,675499571,3224622,675499571,PI,2661.34,02/05/2018
Communities and Homes,Biart Place - Capital,BIA00,Capital Compensation Payments,5010,1750,Personal Redacted Data,152078,03/05/2018,10259385,NT,,,,PN,1750,02/05/2018
Communities and Homes,Biart Place - Capital,BIA00,Capital Compensation Payments,5010,5685.6,Personal Redacted Data,152078,24/05/2018,10260089,NT,,,,PN,5685.6,23/05/2018
Communities and Homes,Rugby Town Development Activities,VSC10,Development Activities,450,578,The Amazing Bunting Co 2007 Ltd,152079,17/05/2018,10259776,TC,912308064,,912308064,PI,693.6,15/05/2018
Growth and Investment,The Benn Hall,BHL00,Events Tickets - Zero Rated,1405,7833,Subish Ltd,152081,03/05/2018,10259406,TC,,,,PN,7833,02/05/2018
Housing Revenue Account,Unplanned Maintenance and Repair,UMR00,Vehicle Repair and Maintenance,200,1556.77,Rugby Autobodies,152082,17/05/2018,10259397,TC,171971881,,171971881,PN,1868.12,02/05/2018
Housing Revenue Account,Supervision and Management General,MAN00,Training fees,11,2940,Personal Redacted Data,152085,31/05/2018,10259981,TC,,,,PI,2940,18/05/2018
Communities and Homes,Biart Place - Capital,BIA00,Capital Compensation Payments,5010,1500,Personal Redacted Data,152087,10/05/2018,10259575,NT,,,,PN,1500,09/05/2018
Communities and Homes,Biart Place - Capital,BIA00,Capital Compensation Payments,5010,6100,Personal Redacted Data,152087,31/05/2018,10260198,NT,,,,PN,6100,25/05/2018
Communities and Homes,Biart Place - Capital,BIA00,Capital Compensation Payments,5010,1500,Personal Redacted Data,152088,10/05/2018,10259577,NT,,,,PN,1500,09/05/2018
Communities and Homes,Biart Place - Capital,BIA00,Capital Compensation Payments,5010,1750,Personal Redacted Data,152089,10/05/2018,10259578,NT,,,,PN,1750,09/05/2018
Communities and Homes,Biart Place - Capital,BIA00,Capital Compensation Payments,5010,1500,Personal Redacted Data,152092,17/05/2018,10259680,NT,,,,PN,1500,11/05/2018
Communities and Homes,Biart Place - Capital,BIA00,Capital Compensation Payments,5010,1750,Personal Redacted Data,152093,17/05/2018,10259712,NT,,,,PN,1750,11/05/2018
Corporate Resources,Human Resources Centralised Services,RES31,Training fees,11,598,Spaghetti Agency Limited,152095,17/05/2018,10259768,TC,173423321,8714383,173423321,PN,717.6,15/05/2018
Communities and Homes,Biart Place - Capital,BIA00,Capital Compensation Payments,5010,1750,Personal Redacted Data,152100,17/05/2018,10259848,NT,,,,PN,1750,16/05/2018
Communities and Homes,Biart Place - Capital,BIA00,Capital Compensation Payments,5010,1500,Personal Redacted Data,152102,24/05/2018,10259913,NT,,,,PN,1500,17/05/2018
Environment and Public Realm,Street Cleansing General,STC00,External Legal Costs,741,500,Warwickshire Employment Rights Service,152104,24/05/2018,10259882,TC,,,,PN,500,17/05/2018
Communities and Homes,Biart Place - Capital,BIA00,Capital Compensation Payments,5010,1750,Personal Redacted Data,152105,24/05/2018,10259953,NT,,,,PN,1750,18/05/2018
Communities and Homes,Biart Place - Capital,BIA00,Capital Compensation Payments,5010,1750,Personal Redacted Data,152107,24/05/2018,10259951,NT,,,,PN,1750,18/05/2018
Communities and Homes,Biart Place - Capital,BIA00,Capital Compensation Payments,5010,1500,Personal Redacted Data,152110,24/05/2018,10260001,NT,,,,PN,1500,21/05/2018
Growth and Investment,Play Projects (revenue),LSD09,Development Activities,450,562.5,Odin Events Ltd,152113,24/05/2018,10260084,TC,102571063,7214690,102571063,PN,675,23/05/2018
Outside portfolio expenditure,Balance Sheet,BS,Car Loan Scheme,9261,3000,Personal Redacted Data,152114,24/05/2018,10260104,NT,,,,PN,3000,23/05/2018
Communities and Homes,CAST - Bed & Breakfast,CAS01,Bed and Breakfast Temporary Accommodation,146,460.83,The Carlton,,16/05/2018,46324,,,,,,,
Communities and Homes,CAST - Bed & Breakfast,CAS01,Bed and Breakfast Temporary Accommodation,146,460.83,The Carlton,,16/05/2018,46324,,,,,,,
Housing Revenue Account,Sheltered Housing Team,MAN21,Other Miscellaneous Expenses,444,606.25,Ikea,,16/05/2018,46324,,,,,,,
Environment and Public Realm,Domestic Waste Collection/Recycling,REF00,Vehicle Running Costs,201,652.5,DVLA,,16/05/2018,46324,,,,,,,
Communities and Homes,CAST - Bed & Breakfast,CAS01,Bed and Breakfast Temporary Accommodation,146,658.33,The Carlton,,16/05/2018,46324,,,,,,,
Housing Revenue Account,Unplanned Maintenance and Repair,UMR00,Tools,304,672.51,UK Tool Centre,,16/05/2018,46324,,,,,,,
Communities and Homes,ITC & Support Services,CIS10,Software Maintenance,374,779.02,Google,,16/05/2018,46350,,,,,,,
Corporate Resources,Corporate Assurance,RES40,Training fees,11,1368,Institute of Internal Auditors,,16/05/2018,46350,,,,,,,
Growth and Investment,Visitor Centre,VSC00,Sales,1200,1253.82,World Rugby,,03/05/2018,46044,,,,,,,
Growth and Investment,Benn Hall,BHL00,Events Tickets - Zero Rated,1405,7833,Subish Ltd,,03/05/2018,46045,,,,,,,
Communities and Homes,Private Sector Leasing,CAS06,Homelessness Prevention,148,1706,Shipways,,08/05/2018,46090,,,,,,,
Communities and Homes,Private Sector Leasing,CAS06,Homelessness Prevention,148,4550,Personal Redacted Data,,10/05/2018,46114,,,,,,,
Communities and Homes,Private Sector Leasing,CAS06,Homelessness Prevention,148,3605,Edward Knight Lettings,,11/05/2018,46147,,,,,,,
Communities and Homes,Housing Options,HOT00,Bed & Breakfast,146,3563.25,Accor,,15/05/2018,46301,,,,,,,
Communities and Homes,Housing Options,HOT00,Bed & Breakfast,146,3627.95,Travelodge,,15/05/2018,46220,,,,,,,
Communities and Homes,Private Sector Leasing,CAS06,Homelessness Prevention,148,1500,Edward Knight Lettings,,15/05/2018,46222,,,,,,,
Housing Revenue Account,Supervision and Management General,MAN00,External Legal Costs,741,2125,HMCTS,,15/05/2018,46158,,,,,,,
Housing Revenue Account,Supervision and Management General,MAN00,External Legal Costs,741,1152,HMCTS,,16/05/2018,46241,,,,,,,
Communities and Homes,Private Sector Leasing,CAS06,Homelessness Prevention,148,1300,Brown ^ Cockerill,,16/05/2018,46243,,,,,,,
Communities and Homes,Private Sector Leasing,CAS06,Homelessness Prevention,148,1200,Personal Redacted Data,,17/05/2018,46273,,,,,,,
Outside portfolio expenditure,User Balance Sheet Cost Centre,BSU,Collection Fund,9476,1149042,Cov & Warks Pooling,,18/05/2018,46343,,,,,,,
Outside portfolio expenditure,User Balance Sheet Cost Centre,BSU,Collection Fund,9476,434396,WCC County Fund,,23/05/2018,46296,,,,,,,
Outside portfolio expenditure,User Balance Sheet Cost Centre,BSU,Collection Fund,9476,2260594,DCLG,,21/05/2018,46294,,,,,,,
Environment and Public Realm,Private Hire Vehciles,HKC01,Other Miscellaneous Expenses,444,572,DBS,,15/05/2018,46301,,,,,,,
Communities and Homes,ITC & Support Services,CIS21,Software Maintenance,374,679.78,Bottomline Technologies,,21/05/2018,46293,,,,,,,
Communities and Homes,Private Sector Leasing,CAS06,Homelessness Prevention,148,1164.05,Clarion Housing,,21/05/2018,46295,,,,,,,
Communities and Homes,Private Sector Leasing,CAS06,Homelessness Prevention,148,950,Edward Knight Lettings,,23/05/2018,46308,,,,,,,
Communities and Homes,Private Sector Leasing,CAS06,Homelessness Prevention,148,1300,Edward Knight Lettings,,25/05/2018,46322,,,,,,,
Communities and Homes,Private Sector Leasing,CAS06,Homelessness Prevention,148,1700,Rose & Sargent,,25/05/2018,46321,,,,,,,
Communities and Homes,Private Sector Leasing,CAS06,Homelessness Prevention,148,1700,Andrews property Services,,29/05/2018,46340,,,,,,,
Communities and Homes,Biart Place - Capital,BIA00,Capital Compensation Payments,5010,3900,Personal Redacted Data,,31/05/2018,46360,,,,,,,
Communities and Homes,Private Sector Leasing,CAS06,Homelessness Prevention,148,2530.82,Engage Credit ,,31/05/2018,46361,,,,,,,
Communities and Homes,Private Sector Leasing,CAS06,Homelessness Prevention,148,1300,Edward Knight Lettings,,31/05/2018,46362,,,,,,,
